Workbook

Sheet model
C1: BYRON MODEL 2025 | F1: RAINFALL DATA - 1980-2024 | O1: PEOPLE/BEDROOMS | S1: HYDRAULIC LOADING | Z1: Water Supply | AC1: TREATMENT | AF1: Remov. N in system | AH1: TREATMENT LEVEL | AK1: GROUP CHARACTERISTICS % | AU1: CONCENTRATIONS | BE1: WETLAND INFORMATION
A2: CLIENT | O2: BEDROOMS | S2: Sources | T2: Water - Jeppesen & Solley (1994) | U2: TN- Witt et al. 1974 | V2: TP- Witt et al. 1974 | W2: BOD | Y2: Reticulated supply (bore,spring,creek) 180L/person/day | AA2: 180 | AC2: Septic (primary treatment only) | AF2: 0 | AG2: Source: | AH2: 1 | AI2: 1 | AL2: Grp1 water | AM2: Grp1 TN | AN2: Grp1 TP | AO2: Grp1BOD | AQ2: Grp2 water | AR2: Grp2 TN | AS2: Grp2 TP | AT2: Grp2BOD | AU2: TN | AV2: 4.2 | AW2: kg/p/yr | BE2: WETLAND TYPE | BG2: GRAHAMS CONCRETE 3m x 2.4 m x 0.6 m | BK2: LENGTH | BL2: =VLOOKUP($C$40,$AJ$30:$AP$32,5,FALSE) -> 3 | BN2: =IF(ISBLANK(BM2),BL2,BM2) -> 3
A3: SITE ADDRESS | O3: NO. BEDROOMS | P3: NO. PEOPLE | S3: Toilet | T3: 0.32 | U3: 0.68 | V3: 0.13 | Y3: Reticulated + standard water saving devices 150L/person/day | AA3: 150 | AC3: AWTS | AF3: 0.2 | AG3: E&HPG | AH3: 2 | AI3: 2 | AJ3: Toilet | AK3: TRUE | AL3: =T8*AK3 -> 0.32 | AM3: =U8*AK3 -> 0.68 | AN3: =V8*AK3 -> 0.13 | AO3: =W8*AK3 -> 0.5 | AP3: TRUE | AQ3: =T3*AP3 -> 0.32 | AR3: =U8*AP3 -> 0.68 | AS3: =V8*AP3 -> 0.13 | AT3: =W8*AP3 -> 0.5 | AU3: TP | AV3: 0.6 | AW3: kg/p/yr | BE3: HOW MANY CELLS | BG3: 3 | BK3: WIDTH | BL3: =VLOOKUP($C$40,$AJ$30:$AP$32,6,FALSE) -> 2.4 | BN3: =IF(ISBLANK(BM3),BL3,BM3) -> 2.4
A4: ALLOTMENT SIZE | C4: IS A SUBDIVISION PROPOSED? USE WHEN LOT SIZE <10,000m2 | G4: NO | H4: 10000 | I4: m2 | O4: 1 | P4: 2 | S4: Bathroom | T4: 0.38 | U4: 0.05 | V4: 0.01 | Y4: Roof water harvesting 140L/person/day | AA4: 140 | AC4: Septic + reedbed | AF4: =IF(ISBLANK(AE4),F16,AE4) -> 0 | AH4: 2 | AI4: 6 | AJ4: Bathroom | AK4: TRUE | AL4: =T9*AK4 -> 0.38 | AM4: =U9*AK4 -> 0.05 | AN4: =V9*AK4 -> 0.01 | AO4: =W9*AK4 -> 0.05 | AP4: TRUE | AQ4: =T4*AP4 -> 0.38 | AR4: =U9*AP4 -> 0.05 | AS4: =V9*AP4 -> 0.01 | AT4: =W9*AP4 -> 0.05 | BK4: DEPTH | BL4: =VLOOKUP($C$40,$AJ$30:$AP$32,7,FALSE) -> 0.5 | BN4: =IF(ISBLANK(BM4),BL4,BM4) -> 0.5
O5: 2 | P5: =$P$4+(O4*1.5) -> 3.5 | S5: Laundry | T5: 0.23 | U5: 0.12 | V5: 0.55 | Y5: Roof water harvest + standard water saving 120L/person/day | AA5: 120 | AJ5: Laundry | AK5: TRUE | AL5: 0.23 | AM5: 0.12 | AN5: 0.55 | AO5: =W10*AK5 -> 0.25 | AP5: TRUE | AQ5: 0.23 | AR5: 0.12 | AS5: 0.55 | AT5: 0.25 | BK5: AREA | BL5: =VLOOKUP($C$40,$AJ$30:$AQ$32,8,FALSE) -> 7.2 | BN5: =IF(ISBLANK(BM5),BL5,BM5) -> 7.2
A6: PROXIMITY TO CREEK | H6: 100 | I6: m | O6: 3 | P6: 5 | S6: Kitchen | T6: 0.07 | U6: 0.15 | V6: 0.31 | Z6: MIN RATE | AA6: =MIN(AA2:AA5) -> 120 | AJ6: Kitchen | AK6: TRUE | AL6: 0.07 | AM6: =U11*AK6 -> 0.15 | AN6: 0.31 | AO6: =W11*AK6 -> 0.2 | AP6: TRUE | AQ6: 0.07 | AR6: 0.15 | AS6: 0.31 | AT6: 0.2 | BK6: TOTAL AREA | BL6: =BL5*BG3 -> 21.6 | BN6: =IF(ISBLANK(BM6),BL6,BM6) -> 21.6
A7: PROXIMITY TO GULLY | H7: 40 | I7: m | O7: 4 | P7: 6.5 | T7: Water | U7: TN | V7: TP | W7: BOD | Z7: RATIO FLOW RATE/LOWEST FLOW RATE | AA7: =L10/AA6 -> 1 | AJ7: TOTAL % | AL7: =SUM(AL3:AL6) -> 1 | AM7: =SUM(AM3:AM6) -> 1 | AN7: 1 | AO7: 1 | AQ7: =SUM(AQ3:AQ6) -> 1 | AR7: =SUM(AR3:AR6) -> 1 | AS7: =SUM(AS3:AS6) -> 1 | AT7: =SUM(AT3:AT6) -> 1 | BK7: TN REMOVAL | BM7: =$AU$22 -> 0.4817311092 | BO7: =IF(ISBLANK(BN7),BL7,BN7) -> 0
A8: VERTICAL DISTANCE TO GROUNDWATER OR BEDROCK | H8: 6 | I8: m | O8: 5 | P8: 8 | S8: Toilet | T8: =T3 -> 0.32 | U8: =U3 -> 0.68 | V8: =V3 -> 0.13 | W8: 0.5 | AB8: treatment | AC8: =VLOOKUP(D36, AC2:AH6,6, FALSE) -> 2 | AE8: list | AF8: =VLOOKUP(D36, AC2:AI4,7, FALSE) -> 6 | AJ8: EQ PEOPLE | AL8: =AL7*K16 -> 6.5 | AM8: =AM7*K16 -> 6.5 | AN8: =AN7*K16 -> 6.5 | AO8: =AO7*K16 -> 6.5 | AQ8: =AQ7*K19 -> 0 | AR8: =AR7*K16 -> 6.5 | AS8: =AS7*K16 -> 6.5 | AT8: =AT7*K19 -> 0
H9: USER OVERRIDE | O9: 6 | P9: 9.5 | S9: Bathroom: shower, bath,basin | T9: =(T4/ SUM(T$4:T$6)) *(1-T$8) -> 0.38 | U9: 0.05 | V9: 0.01 | W9: 0.05 | AC9: =IF(AF8=6, 1-MAX(0,(AO25-20)/(AL19-20)), 1) -> 0.8466193769 | AJ9: TOTAL EQ PEOPLE | AL9: =AL8+AQ8 -> 6.5 | AM9: =AM8+AR8 -> 13 | AN9: =AN8+AS8 -> 13 | AO9: =AO8+AT8 -> 6.5 | BK9: BOD achieved | BM9: =$AO$22 -> 99.39403385 | BN9: mg/L
A10: WATER SUPPLY | C10: Roof water harvest + standard water saving 120L/person/day | I10: L/Person /Day | J10: =VLOOKUP(C10,Y2:AA5,3,FALSE) -> 120 | L10: =IF(ISBLANK(H10),J10,H10) -> 120 | O10: 7 | P10: 11 | S10: Laundry | T10: 0.23 | U10: 0.12 | V10: 0.55 | W10: 0.25 | BL10: Secondary treatment achieved? | BM10: =IF(BM9<20, "Yes", "No") -> No
A11: DISPOSAL FIELD GRADIENT | F11: MOUNDED ETA BED | H11: =AC17 -> 0.65 | O11: 8 | P11: 12.5 | S11: Kitchen: sink,dishw | T11: 0.07 | U11: 0.15 | V11: 0.31 | W11: 0.2 | AC11: Gradient | AD11: from BSC model | AJ11: SUBSURFACE FLOW WETLAND CALCULATIONS (DAVISON, 2003) | BE11: SOIL LANDSCAPES
K12: =H11 -> 0.65 | O12: 9 | P12: 14 | S12: Total % | T12: =SUM(T8:T11) -> 1 | U12: =SUM(U8:U11) -> 1 | V12: =SUM(V8:V11) -> 1 | W12: =SUM(W8:W11) -> 1 | AC12: slope | AD12: retained rainfall coefficient | AL12: 1.00001 | AM12: 1 | AN12: =LN(AL12-AM12) -> -11.51292546 | BE12: Soil unit - Morand Source : SCU data quoted in LCC Strategy (1999) | BG12: Conserv. P sorption | BJ12: time for accumulation of phosphorus
O13: 10 | P13: 15.5 | AB13: 1 | AC13: LEVEL TO 5% | AD13: 0.85 | AF13: Soil texture in root zone likely to be at least class # | AH13: Porosity root zone | AI13: AWC root zone | BJ13: 50 | BK13: years
A14: HOUSE 1 | O14: 11 | P14: 17 | AB14: 2 | AC14: GROUND SLOPE >5 % | AD14: 0.65 | AF14: (None) | AG14: 1 | AH14: 0 | AI14: 0 | AJ14: REED BED AREA | AL14: TN kg/yr | AM14: Tot Q l/d | AN14: totQ m3/d | AO14: conc mg/L | BE14: "Alluvial"Soils 1 (dp,mu,my,te) 10,000 kg/ha/m | BF14: 10000
A15: NUMBER OF BEDROOMS | H15: 4 | I15: USER OVERRIDE | K15: =H15 -> 4 | O15: 12 | P15: 18.5 | AB15: 3 | AC15: MOUNDED ETA BED | AD15: 0.65 | AF15: Bluemetal | AG15: 2 | AH15: 0.43 | AI15: 0 | AJ15: (Davison 2003) | AL15: =AV2*AM9 -> 54.6 | AM15: =D28 -> 780 | AN15: =AM15/1000 -> 0.78 | AO15: =(1000000*AL15/365)/AM15 -> 191.7808219 | AT15: Values in teal colour are values carried forward | BE15: "Alluvial"Soils 2 (cr) 2,000 kg/ha/m | BF15: 2000
A16: NUMBER OF PEOPLE | C16: (2 PEOPLE FIRST BEDROOM, 1.5 PEOPLE/BEDROOM THEREAFTER) | H16: =VLOOKUP(H15,O4:P17,2,FALSE) -> 6.5 | K16: =IF(ISBLANK(I16),H16,I16) -> 6.5 | O16: 13 | P16: 20 | T16: 120 | AF16: Coarse Sand | AG16: 3 | AH16: 0.35 | AI16: 0.08 | AJ16: . | AK16: uses BOD contribution | AL16: full BOD | AM16: % of BOD | AN16: flow coeff | AO16: f.c. overwrite | AP16: BOD coeff for source (toilet etc) | AQ16: BOD source&flow-adjusted | AT16: Values in green are default input values | BE16: Red Basaltic Soils (bg,ca,co,el,ew,mb,ro,wo) 10,000 kg/ha/m | BF16: 10000
A17: HOUSE 2 | O17: 0 | P17: 0 | T17: 150 | AB17: SELECTION | AC17: =VLOOKUP(F11, AC13:AD15, 2, FALSE) -> 0.65 | AF17: Fine sand, Sandy loams | AG17: 4 | AH17: 0.38 | AI17: 0.14 | AK17: % from wastewater flow | AL17: 250 | AM17: =AL19/AL17 -> 1 | AN17: =IF(ISBLANK(AO17),AA7,AO17) -> 1 | AP17: =AO9/(K16+K19) -> 1 | AQ17: =$AP$17*$AL$17/$AN$17 -> 250 | BE17: Duplex Soils (ba, bi,bu,mi, ni) 8,000 kg/ha/m | BF17: 8000
A18: NUMBER OF BEDROOMS | K18: =H18 -> 0 | AF18: Loams,Clay loams,Silt | AG18: 5 | AH18: 0.37 | AI18: 0.15 | AK18: T deg C | AL18: Conc inlet Ci mg/L | AM18: Background conc Cb mg/L | AN18: ln(Ci-Cb) | AO18: target conc outlet Co mg/L | AP18: ln(Co-Cb) | AQ18: kv20 d-1 | AR18: Temperature correction factor theta | AS18: kvT d-1 | AT18: HRT d | AU18: TN reduction | AV18: y | AW18: p | AX18: Area (m2) | AY18: Eqiv pers | AZ18: A/person | BE18: Podzol Soils (ab,bo,br,eb,fh,ki,ku,og,po,ty,wy) 1,000 kg/ha/m | BF18: 1000
A19: NUMBER OF PEOPLE | C19: (NB 2 PEOPLE FIRST BEDROOM, 1.5 PEOPLE/BEDROOM THEREAFTER) | H19: =VLOOKUP(H18,O4:P17,2,FALSE) -> 0 | K19: =IF(ISBLANK(I19),H19,I19) -> 0 | AC19: TRUE | AF19: Clay (light,medium,heavy) | AG19: 6 | AH19: 0.34 | AI19: 0.13 | AJ19: BOD | AK19: 24 | AL19: =MAX((AM$19+AM$19*10^-16),AQ17) -> 250 | AM19: 5 | AN19: =LN(AL19-AM19) -> 5.501258211 | AO19: 20 | AP19: =LN(AO19-AM19) -> 2.708050201 | AQ19: 0.52 | AR19: 0.953 | AS19: =(AQ19*AR19^(AK19-20)) -> 0.4289186656 | AT19: =MAX(0,(AN19-AP19)/AS19) -> 6.512209035 | BE19: Link Cell | BF19: =VLOOKUP(D30, $BE$14:$BF$18, 2, FALSE) -> 10000
G20: TOTAL | H20: =H16+H19 -> 6.5 | K20: =IF(ISBLANK(J20),H20,J20) -> 6.5 | AH20: =VLOOKUP(D33, $AF$16:$AH$19, 3, FALSE) ->  | AI20: =VLOOKUP(D33, $AF$14:$AI$19, 4, FALSE) ->  | AJ20: TN | AK20: 16 | AL20: =AO$15 -> 191.7808219 | AM20: 1.5 | AN20: =LN(AL20-AM20) -> 5.248500991 | AO20: 20 | AP20: =LN(AO20-AM20) -> 2.917770732 | AQ20: 0.18 | AR20: 1 | AS20: =(AQ20*AR20^(AK20-20)) -> 0.18 | AT20: =MAX(0,(AN20-AP20)/AS20) -> 12.94850144 | AU20: =1-AO20/AL20 -> 0.8957142857
A21: WASTEWATER COMPONENTS | K21: USER OVERRIDE | S21: Texture and permeability | Y21: list | Z21: Prim. Treat. Absorp bed DLR (mm/d) | AA21: DIR for SSI X23 should be =IF($X$4=1,INDEX($X$8:$X$22,$V23),0) | AB21: Secondary treatment Absorp Bed DLR(mm/d) | AC21: Time P accumulation | AD21: 50 | AE21: years | AF21: Soil texture in root zone likely to be at least class # | AH21: Porosity root zone | AI21: AWC root zone | AJ21: TN | AK21: =AK20 -> 16 | AL21: =AO$15 -> 191.7808219 | AM21: =AM$20 -> 1.5 | AN21: =LN(AL21-AM21) -> 5.248500991 | AO21: =(1-AU21)*AL21 -> 191.7808219 | AP21: =LN(AO21-AM21) -> 5.248500991 | AQ21: 0.18 | AR21: =AR$20 -> 1 | AS21: =(AQ21*AR21^(AK21-20)) -> 0.18 | AT21: =MAX(0,(AN21-AP21)/AS21) -> 0 | AU21: =K45 -> 0 | AV21: =K42 -> 0.5 | AW21: 0.4 | AX21: =AT21* AN$15/(AV21*AW21) -> 0 | AY21: =AL9 -> 6.5 | AZ21: =AX21/AY21 -> 0 | BA21: specified TN %
C22: HOUSE 1 | D22: L/DAY | E22: TN KG/Y | F22: TP KG/Y | G22: HOUSE 2 | H22: L/DAY | I22: TN KG/Y | J22: TP KG/Y | K22: TN KG/Y | L22: TP KG/Y | S22: Gravels, Sands Ksat >3.0m/d | Y22: 1 | Z22: =AB22*0.5 -> 12.5 | AA22: 10 | AB22: 25 | AC22: Specific Crop Coeff. | AD22: 1 | AH22: 0.35 | AI22: 0.08 | AJ22: TN | AK22: =AK20 -> 16 | AL22: =AO$15 -> 191.7808219 | AM22: =AM$20 -> 1.5 | AN22: =LN(AL22-AM22) -> 5.248500991 | AO22: =AM22+EXP(AN22-AT22*AS22) -> 99.39403385 | AQ22: 0.18 | AR22: =AR$20 -> 1 | AS22: =(AQ22*AR22^(AK22-20)) -> 0.18 | AT22: =AX22*(AV22*AW22)/AN$15 -> 3.692307692 | AU22: =1-AO22/AL22 -> 0.4817311092 | AV22: =K42 -> 0.5 | AW22: 0.4 | AX22: =K44 -> 14.4 | AY22: =AY21 -> 6.5 | AZ22: =AX22/AY22 -> 2.215384615 | BA22: Specify area
A23: TOILET | D23: =IF($AK$3,$T$8*$K$16*$L$10,0) -> 249.6 | E23: =IF($AK$3,$U$8*$K$16*$AV$2,0) -> 18.564 | F23: =IF($AK$3,$V$8*$K$16*$AV$3,0) -> 0.507 | H23: =IF($AP$3,$T$8*$K$19*$L$10,0) -> 0 | I23: =IF($AP$3, $U$8 * $K$19*$AV$2, 0) -> 0 | J23: =IF($AP$3,$V$8*$K$19*$AV$3,0) -> 0 | S23: Sandy loams - weakly structured Ksat >3.0m/d | Y23: 2 | Z23: =AB23*0.5 -> 12.5 | AA23: 9 | AB23: 25 | AC23: Exceedence | AD23: 0.05 | AE23: years | AH23: 0.38 | AI23: 0.14
A24: BATHROOM | D24: =IF($AK$4,$T$9*$K$16*$L$10,0) -> 296.4 | E24: =IF($AK$4,$U$9*$K$16*$AV$2,0) -> 1.365 | F24: =IF($AK$4,$V$9*$K$16*$AV$3,0) -> 0.039 | H24: =IF(AP4,T9*$K$19*$L$10,0) -> 0 | I24: =IF($AP$4, $U$9 * $K$19*$AV$2, 0) -> 0 | J24: =IF($AP$4,$V$9*$K$19*$AV$3,0) -> 0 | S24: Sandy loams - massive Ksat 1.4 - 3.0m/d | Y24: 3 | Z24: =AB24*0.4 -> 10 | AA24: 8 | AB24: 25 | AH24: 0.37 | AI24: 0.15 | AJ24: TN | AK24: =AK20 -> 16 | AL24: =AO15 -> 191.7808219 | AM24: =AM$20 -> 1.5 | AN24: =LN(AL24-AM24) -> 5.248500991 | AO24: =AM24+EXP(AN24-AT24*AS24) -> 60.42723424 | AQ24: 0.18 | AR24: =AR$20 -> 1 | AS24: =(AQ24*AR24^(AK24-20)) -> 0.18 | AT24: =AT19 -> 6.512209035 | AU24: =1-AO24/AL24 -> 0.6849151358 | AV24: =K42 -> 0.5 | AW24: =AW21 -> 0.4 | AX24: =AT24* AN$15/(AV24*AW24) -> 25.39761524 | AY24: =N$13 -> 0 | AZ24: =AZ21 -> 0 | BA24: 2ndary level TN%
A25: LAUNDRY | D25: =IF($AK$5,$T$10*$K$16*$L$10,0) -> 179.4 | E25: =IF($AK$5,$U$10*$K$16*$AV$2,0) -> 3.276 | F25: =IF($AK$5,$V$10*$K$16*AV3,0) -> 2.145 | H25: =IF(AP5,T10*$K$19*$L$10,0) -> 0 | I25: =IF($AP$5,$U$10*$K$19*$AV$2,0) -> 0 | J25: =IF($AP$5,$V$10*$K$19*$AV$3,0) -> 0 | S25: Loams -strong/moderate structured Ksat 1.5 - 3.0m/d | Y25: 4 | Z25: =AB25*0.4 -> 10 | AA25: 7 | AB25: 25 | AH25: 0.37 | AI25: 0.15 | AJ25: BOD | AK25: 24 | AL25: =AL19 -> 250 | AM25: 5 | AN25: =LN(AL25-AM25) -> 5.501258211 | AO25: =AM25+EXP(AN25-AT25*AS25) -> 55.2775433 | AQ25: 0.52 | AR25: 0.953 | AS25: =(AQ25*AR25^(AK25-20)) -> 0.4289186656 | AT25: =AT22 -> 3.692307692
A26: KITCHEN | D26: =IF($AK$6,$T$11*$K$16*$L$10,0) -> 54.6 | E26: =IF($AK$6,$U$11*$K$16*$AV$2,0) -> 4.095 | F26: =IF($AK$6,$V$11*$K$16*AV3,0) -> 1.209 | H26: =IF(AP6,T11*$K$19*$L$10,0) -> 0 | I26: =IF($AP$6,$U$11*$K$19*$AV$2,0) -> 0 | J26: =IF($AP$6,$V$11*$K$19*$AV$3,0) -> 0 | S26: Loams - weaky/massive structured Ksat 0.5 - 1.5m/d | Y26: 5 | Z26: 10 | AA26: 6 | AB26: 20 | AH26: 0.37 | AI26: 0.15
A27: TOTALS | D27: =SUM(D23:D26) -> 780 | E27: =SUM(E23:E26) -> 27.3 | F27: =SUM(F23:F26) -> 3.9 | H27: =SUM(H23:H26) -> 0 | I27: =SUM(I23:I26) -> 0 | J27: =SUM(J23:J26) -> 0 | M27: =IF(K27<>"",K27,SUM(K23:K26)) -> 0 | N27: =IF(L27<>"",L27,SUM(L23:L26)) -> 0 | S27: Clay loams - strong/mod structured Ksat 0.5 - 1.5m/d | Y27: 6 | Z27: 10 | AA27: 5 | AB27: 18 | AE27: Link cell | AH27: 0.37 | AI27: 0.15
A28: TOTAL LOADINGS | D28: =SUM(D23:D26,H23:H26) -> 780 | E28: L/DAY | F28: =IF(M27>0, M27, E27 + I27) -> 27.3 | G28: TN KG/YR | H28: =IF(N27>0, N27, F27 + J27) -> 3.9 | I28: TP KG/YR | S28: Clay loams - weakly structured Ksat 0.12 - 0.5m/d | Y28: 7 | Z28: 6 | AA28: 4.5 | AB28: 15 | AH28: 0.37 | AI28: 0.15 | AJ28: WETLAND SYSTEMS - DEFAULTS FOR AVAILABLE WETLANDS
A29: SOIL INFORMATION | S29: Clay loams - massive structured Ksat 0.06 - 0.12m/d | Y29: 8 | Z29: 4 | AA29: =AA28-0.125 -> 4.375 | AB29: 12 | AH29: 0.37 | AI29: 0.15 | AJ29: name | AN29: length | AO29: width | AP29: depth | AQ29: AREA | AZ29: CHANGIING SOIL PARAMETERS FOR SOIL CHARACTERISTICS BASED ON DISPOSAL TYPE
A30: SOIL LANDSCAPE | D30: Red Basaltic Soils (bg,ca,co,el,ew,mb,ro,wo) 10,000 kg/ha/m | S30: Light clays - strongly structured Ksat 0.12 - 0.5m/d | Y30: 9 | Z30: 5 | AA30: =AA29-0.125 -> 4.25 | AB30: 12 | AH30: 0.34 | AI30: 0.13 | AJ30: GRAHAMS CONCRETE/CMW 3m x 2.4 m x 0.5 m | AN30: 3 | AO30: 2.4 | AP30: 0.5 | AQ30: =AN30*AO30 -> 7.2 | BC30: =IF($S$46=1, "DEPTH OF SOIL ABOVE GRAVEL LAYER (m)", IF(OR($S$46=2, $S$46=3), "DEPTH OF SOIL IN ROOT ZONE (m)", "")) -> DEPTH OF SOIL ABOVE GRAVEL LAYER (m) | BD30: =BT29 -> 0 | BF30: =IF(ISBLANK(I55),H55,I55) -> 0.15
A31: TEXTURE/STRUCTURE BENEATH SYSTEM | D31: Light clays - strongly structured Ksat 0.12 - 0.5m/d | S31: Light clays - moderately structured Ksat 0.06 - 0.12m/d | Y31: 10 | Z31: 0 | AA31: =AA30-0.125 -> 4.125 | AB31: 10 | AC31: USE SECONDARY TREATMENT | AE31: ="" ->  | AH31: 0.34 | AI31: 0.13 | AJ31: UBI AQUA 3.3 m x 2.5 m x 0.56 m | AN31: 3.3 | AO31: 2.5 | AP31: 0.56 | AQ31: =AN31*AO31 -> 8.25 | AR31: *this needs to be confirmed if council will accept these defaults | BC31: =IF($S$46=1, "DEPTH OF GRAVEL LAYER (mm)", IF(OR($S$46=2, $S$46=3), "", "")) -> DEPTH OF GRAVEL LAYER (mm) | BD31: =BT32 -> 0 | BF31: =IF(ISBLANK(I56),H56,I56) -> 0.25
A32: PERMEABILITY | G32: =IF(S46=1, IF(ISNA(H32), "CHOOSE SECONDARY TREATMENT DUE TO SOIL TYPE", IF(AF8=1, IF(Y37<=2, "LOADING RATE REDUCED DUE TO HIGH PERMEABILTY RATE OF SOIL", ""), IF(AND(AF8>=2, Y37<=6), IF(AF8=6, IF(I48="No", "REDUCED DESIGN LOADING RATE FOR SOIL PERMEABILTY AND BOD >20 mg/L", "LOADING RATE REDUCED DUE TO HIGH PERMEABILTY RATE OF SOIL"), "LOADING RATE REDUCED DUE TO HIGH PERMEABILTY RATE OF SOIL" ), IF(AND(AF8=6, Y37>6, I48="No"), "REDUCED DESIGN LOADING RATE DUE TO BOD >20 mg/L", "") ) ) ), "" ) -> REDUCED DESIGN LOADING RATE DUE TO BOD >20 mg/L | H32: =IF(OR(S46=2, S46=3), Z38, IF(AC8=1, Z38, IF(AC19, AB37, IF(Y37 <= 6, AB37, AZ47)))) -> 10.15943252 | I32: mm/DAY | S32: Light clays - weakly/massive structured Ksat <0.06m/d | Y32: 11 | Z32: 0 | AA32: 4 | AB32: 8 | AC32: USE SECONDARY TREATMENT, SSI AND 5 mm/DAY PERCOLATION RATE | AE32: ="" ->  | AH32: 0.34 | AI32: 0.13 | AJ32: CUSTOM | AN32: =H45 -> 0 | AO32: =H46 -> 0 | AP32: =H47 -> 0 | AQ32: 0 | BC32: POROSITY OF SOIL IN ROOT ZONE | BD32: =AH37 -> 0.34 | BF32: =IF(ISBLANK(BE32),BD32,BE32) -> 0.34
S33: Medium to heavy clays - strongly structured Ksat 0.06 - 0.5 m/d | Y33: 12 | Z33: 0 | AA33: 3.875 | AB33: 5 | AC33: =AC32 -> USE SECONDARY TREATMENT, SSI AND 5 mm/DAY PERCOLATION RATE | AE33: =AC32 -> USE SECONDARY TREATMENT, SSI AND 5 mm/DAY PERCOLATION RATE | AH33: 0.34 | AI33: 0.13 | BC33: =IF($S$46=1, "POROSITY OF GRAVEL", IF(OR($S$46=2, $S$46=3), "", "")) -> POROSITY OF GRAVEL | BD33: =X55 -> 0.43 | BF33: 0.43
S34: Medium to heavy clays - moderately structured Ksat <0.06m/d | Y34: 13 | Z34: 0 | AA34: 3.75 | AB34: 4 | AC34: =AC33 -> USE SECONDARY TREATMENT, SSI AND 5 mm/DAY PERCOLATION RATE | AE34: =AC33 -> USE SECONDARY TREATMENT, SSI AND 5 mm/DAY PERCOLATION RATE | AH34: 0.34 | AI34: 0.13 | AK34: Primary only (e.g. septic) | AN34: 0 | BC34: AVAILABLE WATER CAPACITY OF ROOT ZONE | BD34: =AI37 -> 0.13 | BF34: 0.13
A35: MANAGEMENT SYSTEM | I35: USER OVERRIDE NUTRIENT REDUCTION | S35: Medium to heavy clays - weakly/massive structured Ksat<0.06m/d | Y35: 14 | Z35: 0 | AA35: 3.625 | AB35: 4 | AC35: =AC34 -> USE SECONDARY TREATMENT, SSI AND 5 mm/DAY PERCOLATION RATE | AE35: =AC34 -> USE SECONDARY TREATMENT, SSI AND 5 mm/DAY PERCOLATION RATE | AH35: 0.34 | AI35: 0.13 | AK35: Secondary: AWTS | AN35: 0.2 | BC35: LATERAL SEEPAGE 0.25 (change from 0.3 on original model) | BD35: =IF(S46=1, IF(Y37<=7, 0,$BD$36), 0) -> 0.25 | BF35: 0.25
A36: TREATMENT SYSTEM | D36: Septic + reedbed | H36: REDUCTION | J36: OUTPUT KG/Y | Z36: 0 | AK36: Secondary: Reed bed | AN36: =BH37 -> 0 | BC36: laterak seepage for side walls of trench (m) | BD36: 0.25
D37: TAYLEX ABSNR 2000 | Y37: =VLOOKUP(D31, $S$22:$Y$36, 7, FALSE) -> 9 | Z37: =INDEX(Z22:Z36,$Y37) -> 5 | AA37: =INDEX($AA$22:$AA$36,$Y37) -> 4.25 | AB37: =INDEX(AB22:AB35, $Y37) * Z40 -> 10.15943252 | AC37: =INDEX(AC22:AC36,$Y37) -> 0 | AD37: =INDEX(AD22:AD36,$Y37) -> 0 | AE37: =INDEX(AE22:AE36,$Y37) -> 0 | AH37: =INDEX($AH$22:$AH$35,$Y37) -> 0.34 | AI37: =INDEX($AI$22:$AI$35,$Y37) -> 0.13 | AK37: Secondary: generic | AN37: 0
D38: TOTAL NITROGEN | H38: =IF($D$36="AWTS", VLOOKUP(D37, AU58:AY66, 4, FALSE), IF($D$36="SEPTIC + REEDBED", I45, VLOOKUP(treatmentsystem, BD58:BH61, 4, FALSE))) -> 0.4817311092 | J38: =X67*1.2 -> 13.58279109 | K38: =IF(ISBLANK(I38),H38,I38) -> 0.4817311092 | S38: CHOICE ACCORDING TO DEGREE OF TREATMENT | Z38: =IF( INDEX($Z$37:$AB$37, Z39)=0, #N/A, INDEX($Z$37:$AB$37,Z39)) -> 10.15943252 | AK38: reserved | AQ38: these were the rates | AX38: Prim. Treat. Absorp bed DLR (mm/d) | AY38: DIR for SSI X23 should be =IF($X$4=1,INDEX($X$8:$X$22,$V23),0) | AZ38: Secondary treatment Absorp Bed DLR(mm/d)
D39: TOTAL PHOSPHORUS | H39: =IF($D$36="AWTS", VLOOKUP(D37, AU58:AY66, 5, FALSE), VLOOKUP(treatmentsystem, BD58:BH62, 5, FALSE)) -> 0 | J39: =AA72 -> 3.9 | K39: =IF(ISBLANK(I39),H39,I39) -> 0 | S39: INDEX OF SOILS | Z39: =IF($AF$8=1, IF($S$46=1, 1, IF(OR($S$46=2, $S$46=3), NA(), 3)), IF($S$46=1, 3, 2)) -> 3 | AB39: =IF($AF$8=1, IF(OR($S$46=2, $S$46=3), 1, IF(AND($S$46=1, $D$36), 2, 3)), IF(AND($S$46=1, $D$36), 3, 2)) -> 3 | AK39: reserved | AQ39: Gravels,Sands Ksat >3.0m/d | AW39: 1 | AX39: 20 | AY39: 10 | AZ39: 50
A40: REEDBED TYPE | C40: GRAHAMS CONCRETE/CMW 3m x 2.4 m x 0.5 m | G40: LENGTH | H40: =VLOOKUP($C$40,$AJ$30:$AP$32,5,FALSE) -> 3 | I40: 10 | K40: =IF(wetlandtype="custom", I40, H40) -> 3 | S40: BOD | Z40: =IF(AF8=6,1-MAX(0,(AO25-20)/(AL19-20)),1) -> 0.8466193769 | AA40: % USED TO REDUCE LTAR BASED ON WETLAND SIZE | AK40: reserved | AQ40: Sandy loams - weakly structured Ksat >3.0m/d | AW40: 2 | AX40: 20 | AY40: 9 | AZ40: 50
A41: HOW MANY CELLS | C41: 2 | G41: WIDTH | H41: =VLOOKUP($C$40,$AJ$30:$AP$32,6,FALSE) -> 2.4 | I41: 3 | K41: =IF(wetlandtype="custom", I41, H41) -> 2.4 | X41: 491 | AK41: reserved | AQ41: Sandy loams - massive Ksat 1.4 - 3.0m/d | AW41: 3 | AX41: 15 | AY41: 8 | AZ41: 50
G42: DEPTH | H42: =VLOOKUP($C$40,$AJ$30:$AP$32,7,FALSE) -> 0.5 | I42: 0.5 | K42: =IF(wetlandtype="custom", I42, H42) -> 0.5 | S42: LAND APPLICATION | AA42: For Calculations | AC42: ETA BED SIZING | AK42: reserved | AQ42: Loams - high/moderate structured Ksat 1.5 - 3.0m/d | AW42: 4 | AX42: 15 | AY42: 7 | AZ42: 50
G43: AREA | H43: =VLOOKUP($C$40,$AJ$30:$AQ$32,8,FALSE) -> 7.2 | I43: =IF(wetlandtype="Custom", wetlandcustomlength*wetlandcustomwidth, "") ->  | S43: EVAPOTRANSPIRATION/ABSORPTION BED | V43: 1 | W43: 2 | AA43: N calculations | AK43: =IFERROR(INDEX(AH2:AH6, MATCH(D36, {"Septic (primary treatment only)","AWTS","Septic + single pass sandfilter (SPF)","Septic + SPF, 25% septic return flow","Septic + recirculating sandfilter","Septic + reedbed"}, 0)), "Unknown") -> Unknown | AL43: TN redn | AM43: =INDEX(AF2:AF8,$AK43) ->  | AN43: Treat level | AO43: =INDEX(AH2:AH8,$AK43) ->  | AQ43: Loams - weakly structured or massive Ksat 0.5 - 1.5m/d | AW43: 5 | AX43: 10 | AY43: 6 | AZ43: 30
G44: TOTAL AREA | H44: =H43*C41 -> 14.4 | I44: =IF(wetlandtype="Custom", wetlandcustomlength * wetlandcustomwidth * wetlandcellnumber, "") ->  | K44: =IF(OR(wetlandtype="GRAHAMS CONCRETE/CMW 3m x 2.4 m x 0.5 m", wetlandtype="UBI AQUA 3.3 m x 2.5 m x 0.56 m"), H44, IF(wetlandtype="Custom", I44, "")) -> 14.4 | S44: SUBSURFACE IRRIGATION | V44: 2 | W44: 1 | AA44: Total yearly flow | AB44: =D28*365 -> 284700 | AK44: Reed bed (if RB what wettd dpth)? | AN44: =AK43=3 -> FALSE | AQ44: Clay loams - high/mod structured Ksat 0.5 - 1.5m/d | AW44: 6 | AX44: 10 | AY44: 5 | AZ44: 30
G45: TN REMOVAL | I45: =AU22 -> 0.4817311092 | K45: =IF(ISBLANK(J45),H45,J45) -> 0 | S45: SPRAY IRRIGATION | V45: 3 | W45: 1 | AA45: less overflow | AB45: =O77*$X$41 -> 46670.16608
S46: =VLOOKUP(E50, S43:V45, 4, FALSE) -> 1 | W46: =VLOOKUP(E50, S43:W45, 5, FALSE) -> 2 | AA46: Tot flow infiltr. L/yr | AB46: =AB44-AB45 -> 238029.8339 | AQ46: changed them to reflect design limits
G47: BOD achieved | I47: =AO25 -> 55.2775433 | J47: mg/L | AA47: Effect.effluent ratio | AB47: =$AB$46/$AB$44 -> 0.836072476 | AC47: apply ratio to N? | AZ47: =(INDEX(AZ39:AZ43,$Y37)-INDEX($Y22:$Y27,$Y37))*Z40 + INDEX($Y22:$Y27,$Y37) -> 
H48: Secondary treatment achieved? | I48: =IF(I47<20, "YES", "NO") -> NO | S48: LAND APPLICATION CHARACTERISTICS | W48: ETA BED | X48: SSI | AA48: TN infiltrating kg/yr | AB48: =$X$67* IF($AC$48, $AB$47,1) -> 11.31899258 | AC48: FALSE | AS48: Setting up size of ETA beds
C49: =IF(I48="no", "INCREASE NUMBER OF WETLAND CELLS IF SENSITIVE SITE", "") -> INCREASE NUMBER OF WETLAND CELLS IF SENSITIVE SITE | S49: average depth root zone (m) | W49: 0.15 | X49: 0.3 | AA49: N conc in effluent infiltrating (mg/L) | AB49: =1000000*(AB48/ AB46) -> 47.55283146 | AD49: Lateral seepage width (m) | AG49: =BF35 -> 0.25 | AH49: testing this to see if I can put 0 when soil is highly permeable | AS49: Y axis values for envelope | AT49: 1 | AU49: 1 | AV49: =AT49+1 -> 2 | AW49: =AU49+1 -> 2 | AX49: 3 | AY49: 3 | AZ49: 4 | BA49: 4 | BB49: 5 | BC49: 5 | BD49: 6 | BE49: 6 | BF49: 7 | BG49: 7 | BH49: 8 | BI49: 8 | BJ49: 9 | BK49: 9 | BL49: 10 | BM49: 10 | BN49: 11 | BO49: 11 | BP49: 12 | BQ49: 12 | BR49: 13 | BS49: 13 | BT49: 14 | BU49: 14 | BV49: 15 | BW49: 15 | BX49: 16 | BY49: 16 | BZ49: 17 | CA49: 17 | CB49: 18 | CC49: 18 | CD49: 19 | CE49: 19 | CF49: 20 | CG49: 20 | CH49: 21 | CI49: 21 | CJ49: 22 | CK49: 22 | CL49: 23 | CM49: 23 | CN49: 24 | CO49: 24 | CP49: 25 | CQ49: 25 | CR49: 26 | CS49: 26 | CT49: 27 | CU49: 27 | CV49: 28 | CW49: 28 | CX49: 29 | CY49: 29 | CZ49: 30 | DA49: 30 | DB49: 31 | DC49: 31 | DD49: 32 | DE49: 32 | DF49: 33 | DG49: 33 | DH49: =DF49+1 -> 34 | DI49: 34 | DJ49: 35 | DK49: 35 | DL49: 36 | DM49: 36 | DN49: 37 | DO49: 37 | DP49: 38 | DQ49: 38 | DR49: 39 | DS49: 39 | DT49: 40 | DU49: 40 | DV49: 41 | DW49: 41 | DX49: 42 | DY49: 42 | DZ49: 43 | EA49: 43 | EB49: 44 | EC49: 44 | ED49: 45 | EE49: 45 | EF49: 46 | EG49: 46 | EH49: 47 | EI49: 47 | EJ49: 48 | EK49: 48 | EL49: 49 | EM49: 49 | EN49: 50 | EO49: 50 | EP49: 51 | EQ49: 51
A50: LAND APPLICATION TYPE | E50: EVAPOTRANSPIRATION/ABSORPTION BED | I50: USER OVERRIDE | S50: average depth bluemetal in trench below(m) | W50: 0.25 | AA50: ETA | AF50: Eta bed separation | AG50: =K51 -> 2 | AT50: =$AG$53 -> 0.25 | AU50: =AT50 -> 0.25 | AV50: =IF(AV49<=$AI$54, (2*$AG$53)+AT53+(($W$46-1)*$AH$51),0) -> 4.25 | AW50: =IF(AW49<=$AI$54, (2*$AG$53)+AU53+(($W$46-1)*$AH$51),0) -> 4.25 | AX50: =IF(AX49<=$AI$54, (2*$AG$53)+AW53+IF(IF($S$46=1, 2, 1)=1, 0, $AH$51),0) -> 0 | AY50: =IF(AY49<=$AI$54, (2*$AG$53)+AX53+IF(IF($S$46=1, 2, 1)=1, 0, $AH$51),0) -> 0 | AZ50: =IF(AZ49<=$AI$54, (2*$AG$53)+AY53+IF(IF($S$46=1, 2, 1)=1, 0, $AH$51),0) -> 0 | BA50: 0 | BB50: 0 | BC50: 0 | BD50: 0 | BE50: 0 | BF50: 0 | BG50: 0 | BH50: 0 | BI50: 0 | BJ50: 0 | BK50: 0 | BL50: 0 | BM50: 0 | BN50: 0 | BO50: 0 | BP50: 0 | BQ50: 0 | BR50: 0 | BS50: 0 | BT50: 0 | BU50: 0 | BV50: 0 | BW50: 0 | BX50: 0 | BY50: 0 | BZ50: 0 | CA50: 0 | CB50: 0 | CC50: 0 | CD50: 0 | CE50: 0 | CF50: 0 | CG50: 0 | CH50: 0 | CI50: 0 | CJ50: 0 | CK50: 0 | CL50: 0 | CM50: 0 | CN50: 0 | CO50: 0 | CP50: 0 | CQ50: 0 | CR50: 0 | CS50: 0 | CT50: 0 | CU50: 0 | CV50: 0 | CW50: 0 | CX50: 0 | CY50: 0 | CZ50: 0 | DA50: 0 | DB50: 0 | DC50: 0 | DD50: 0 | DE50: 0 | DF50: 0 | DG50: 0 | DH50: 0 | DI50: 0 | DJ50: 0 | DK50: =IF(DK49<=$AI$54, (2*$AG$53)+DJ53+IF(IF($S$46=1, 2, 1)=1, 0, $AH$51),0) -> 0 | DL50: 0 | DM50: 0 | DN50: 0 | DO50: 0 | DP50: 0 | DQ50: 0 | DR50: 0 | DS50: 0 | DT50: 0 | DU50: 0 | DV50: 0 | DW50: 0 | DX50: 0 | DY50: 0 | DZ50: 0 | EA50: 0 | EB50: 0 | EC50: 0 | ED50: 0 | EE50: 0 | EF50: 0 | EG50: 0 | EH50: 0 | EI50: 0 | EJ50: 0 | EK50: 0 | EL50: 0 | EM50: 0 | EN50: 0 | EO50: 0 | EP50: 0 | EQ50: 0
G51: =IF(varDisposalField="EVAPOTRANSPIRATION/ABSORPTION BED", "ETA BED SEPARATION (m)", IF(OR(varDisposalField="SUBSURFACE IRRIGATION", varDisposalField="SPRAY IRRIGATION"), "IRRIGATION LINE SEPARATION (m)", "")) -> ETA BED SEPARATION (m) | H51: =IF(varDisposalField="EVAPOTRANSPIRATION/ABSORPTION BED", 2, IF(OR(varDisposalField="SUBSURFACE IRRIGATION", varDisposalField="SPRAY IRRIGATION"), 1, "")) -> 2 | K51: =IF(ISBLANK(I51),H51,I51) -> 2 | S51: porosity of gravel | W51: 0.43 | AA51: N conc. in effluent kg/L | AB51: =($AB$48 /( ($P$77+$M$77-$G$77 - $O$77 )*varWaterBalanceArea) ) -> 4.234835107e-05 | AF51: ETA bed width | AG51: =K52 -> 2 | AH51: =AG50-2*AG53 -> 1.5 | AI51: taking into account seepage and separation | AT51: =AT$50+$H$52 -> 2.25 | AU51: =AT50 -> 0.25 | AV51: =IF(AV49<=$AI$54, AV50+ $AG$51, 0) -> 6.25 | AW51: =AW50 -> 4.25 | AX51: =IF(AX49<=$AI$54, AX50+ $AG$51, 0) -> 0 | AY51: =AY50 -> 0 | AZ51: =IF(AZ49<=$AI$54, AZ50+ $AG$51, 0) -> 0 | BA51: =BA50 -> 0 | BB51: =IF(BB49<=$AI$54, BB50+ $AG$51, 0) -> 0 | BC51: =BC50 -> 0 | BD51: =IF(BD49<=$AI$54, BD50+ $AG$51, 0) -> 0 | BE51: =BE50 -> 0 | BF51: =IF(BF49<=$AI$54, BF50+ $AG$51, 0) -> 0 | BG51: =BG50 -> 0 | BH51: =IF(BH49<=$AI$54, BH50+ $AG$51, 0) -> 0 | BI51: =BI50 -> 0 | BJ51: =IF(BJ49<=$AI$54, BJ50+ $AG$51, 0) -> 0 | BK51: =BK50 -> 0 | BL51: =IF(BL49<=$AI$54, BL50+ $AG$51, 0) -> 0 | BM51: =BM50 -> 0 | BN51: =IF(BN49<=$AI$54, BN50+ $AG$51, 0) -> 0 | BO51: =BO50 -> 0 | BP51: =IF(BP49<=$AI$54, BP50+ $AG$51, 0) -> 0 | BQ51: =BQ50 -> 0 | BR51: =IF(BR49<=$AI$54, BR50+ $AG$51, 0) -> 0 | BS51: =BS50 -> 0 | BT51: =IF(BT49<=$AI$54, BT50+ $AG$51, 0) -> 0 | BU51: =BU50 -> 0 | BV51: =IF(BV49<=$AI$54, BV50+ $AG$51, 0) -> 0 | BW51: =BW50 -> 0 | BX51: =IF(BX49<=$AI$54, BX50+ $AG$51, 0) -> 0 | BY51: =BY50 -> 0 | BZ51: =IF(BZ49<=$AI$54, BZ50+ $AG$51, 0) -> 0 | CA51: =CA50 -> 0 | CB51: =IF(CB49<=$AI$54, CB50+ $AG$51, 0) -> 0 | CC51: =CC50 -> 0 | CD51: =IF(CD49<=$AI$54, CD50+ $AG$51, 0) -> 0 | CE51: =CE50 -> 0 | CF51: =IF(CF49<=$AI$54, CF50+ $AG$51, 0) -> 0 | CG51: =CG50 -> 0 | CH51: =IF(CH49<=$AI$54, CH50+ $AG$51, 0) -> 0 | CI51: =CI50 -> 0 | CJ51: =IF(CJ49<=$AI$54, CJ50+ $AG$51, 0) -> 0 | CK51: =CK50 -> 0 | CL51: =IF(CL49<=$AI$54, CL50+ $AG$51, 0) -> 0 | CM51: =CM50 -> 0 | CN51: =IF(CN49<=$AI$54, CN50+ $AG$51, 0) -> 0 | CO51: =CO50 -> 0 | CP51: =IF(CP49<=$AI$54, CP50+ $AG$51, 0) -> 0 | CQ51: =CQ50 -> 0 | CR51: =IF(CR49<=$AI$54, CR50+ $AG$51, 0) -> 0 | CS51: =CS50 -> 0 | CT51: =IF(CT49<=$AI$54, CT50+ $AG$51, 0) -> 0 | CU51: =CU50 -> 0 | CV51: =IF(CV49<=$AI$54, CV50+ $AG$51, 0) -> 0 | CW51: =CW50 -> 0 | CX51: =IF(CX49<=$AI$54, CX50+ $AG$51, 0) -> 0 | CY51: =CY50 -> 0 | CZ51: =IF(CZ49<=$AI$54, CZ50+ $AG$51, 0) -> 0 | DA51: =DA50 -> 0 | DB51: =IF(DB49<=$AI$54, DB50+ $AG$51, 0) -> 0 | DC51: =DC50 -> 0 | DD51: =IF(DD49<=$AI$54, DD50+ $AG$51, 0) -> 0 | DE51: =DE50 -> 0 | DF51: =IF(DF49<=$AI$54, DF50+ $AG$51, 0) -> 0 | DG51: =DG50 -> 0 | DH51: =IF(DH49<=$AI$54, DH50+ $AG$51, 0) -> 0 | DI51: =DI50 -> 0 | DJ51: =IF(DJ49<=$AI$54, DJ50+ $AG$51, 0) -> 0 | DK51: =DK50 -> 0 | DL51: =IF(DL49<=$AI$54, DL50+ $AG$51, 0) -> 0 | DM51: =DM50 -> 0 | DN51: =IF(DN49<=$AI$54, DN50+ $AG$51, 0) -> 0 | DO51: =DO50 -> 0 | DP51: =IF(DP49<=$AI$54, DP50+ $AG$51, 0) -> 0 | DQ51: =DQ50 -> 0 | DR51: =IF(DR49<=$AI$54, DR50+ $AG$51, 0) -> 0 | DS51: =DS50 -> 0 | DT51: =IF(DT49<=$AI$54, DT50+ $AG$51, 0) -> 0 | DU51: =DU50 -> 0 | DV51: =IF(DV49<=$AI$54, DV50+ $AG$51, 0) -> 0 | DW51: =DW50 -> 0 | DX51: =IF(DX49<=$AI$54, DX50+ $AG$51, 0) -> 0 | DY51: =DY50 -> 0 | DZ51: =IF(DZ49<=$AI$54, DZ50+ $AG$51, 0) -> 0 | EA51: =EA50 -> 0 | EB51: =IF(EB49<=$AI$54, EB50+ $AG$51, 0) -> 0 | EC51: =EC50 -> 0 | ED51: =IF(ED49<=$AI$54, ED50+ $AG$51, 0) -> 0 | EE51: =EE50 -> 0 | EF51: =IF(EF49<=$AI$54, EF50+ $AG$51, 0) -> 0 | EG51: =EG50 -> 0 | EH51: =IF(EH49<=$AI$54, EH50+ $AG$51, 0) -> 0 | EI51: =EI50 -> 0 | EJ51: =IF(EJ49<=$AI$54, EJ50+ $AG$51, 0) -> 0 | EK51: =EK50 -> 0 | EL51: =IF(EL49<=$AI$54, EL50+ $AG$51, 0) -> 0 | EM51: =EM50 -> 0 | EN51: =IF(EN49<=$AI$54, EN50+ $AG$51, 0) -> 0 | EO51: =EO50 -> 0 | EP51: =IF(EP49<=$AI$54, EP50+ $AG$51, 0) -> 0 | EQ51: =EQ50 -> 0
G52: =IF(varDisposalField="EVAPOTRANSPIRATION/ABSORPTION BED", "ETA BED WIDTH (m)", IF(OR(varDisposalField="SUBSURFACE IRRIGATION", varDisposalField="SPRAY IRRIGATION"), "IRRIGATION LINE LENGTH (m)", "")) -> ETA BED WIDTH (m) | H52: =IF(varDisposalField="EVAPOTRANSPIRATION/ABSORPTION BED", 2, IF(OR(varDisposalField="SUBSURFACE IRRIGATION", varDisposalField="SPRAY IRRIGATION"), SQRT(varWaterBalanceArea), "")) -> 2 | K52: =IF(ISBLANK(I52),H52,I52) -> 2 | AA52: Volume percolated L/yr | AB52: =$I$77*varWaterBalanceArea -> 276009.7216 | AT52: =AT51 -> 2.25 | AU52: =AT50 -> 0.25 | AV52: =AV51 -> 6.25 | AW52: =AW50 -> 4.25 | AX52: =AX51 -> 0 | AY52: =AY50 -> 0 | AZ52: =AZ51 -> 0 | BA52: =BA50 -> 0 | BB52: =BB51 -> 0 | BC52: =BC50 -> 0 | BD52: =BD51 -> 0 | BE52: =BE50 -> 0 | BF52: =BF51 -> 0 | BG52: =BG50 -> 0 | BH52: =BH51 -> 0 | BI52: =BI50 -> 0 | BJ52: =BJ51 -> 0 | BK52: =BK50 -> 0 | BL52: =BL51 -> 0 | BM52: =BM50 -> 0 | BN52: =BN51 -> 0 | BO52: =BO50 -> 0 | BP52: =BP51 -> 0 | BQ52: =BQ50 -> 0 | BR52: =BR51 -> 0 | BS52: =BS50 -> 0 | BT52: =BT51 -> 0 | BU52: =BU50 -> 0 | BV52: =BV51 -> 0 | BW52: =BW50 -> 0 | BX52: =BX51 -> 0 | BY52: =BY50 -> 0 | BZ52: =BZ51 -> 0 | CA52: =CA50 -> 0 | CB52: =CB51 -> 0 | CC52: =CC50 -> 0 | CD52: =CD51 -> 0 | CE52: =CE50 -> 0 | CF52: =CF51 -> 0 | CG52: =CG50 -> 0 | CH52: =CH51 -> 0 | CI52: =CI50 -> 0 | CJ52: =CJ51 -> 0 | CK52: =CK50 -> 0 | CL52: =CL51 -> 0 | CM52: =CM50 -> 0 | CN52: =CN51 -> 0 | CO52: =CO50 -> 0 | CP52: =CP51 -> 0 | CQ52: =CQ50 -> 0 | CR52: =CR51 -> 0 | CS52: =CS50 -> 0 | CT52: =CT51 -> 0 | CU52: 0 | CV52: =CV51 -> 0 | CW52: 0 | CX52: =CX51 -> 0 | CY52: 0 | CZ52: =CZ51 -> 0 | DA52: 0 | DB52: =DB51 -> 0 | DC52: 0 | DD52: =DD51 -> 0 | DE52: =DE50 -> 0 | DF52: =DF51 -> 0 | DG52: 0 | DH52: =DH51 -> 0 | DI52: 0 | DJ52: =DJ51 -> 0 | DK52: 0 | DL52: =DL51 -> 0 | DM52: 0 | DN52: =DN51 -> 0 | DO52: 0 | DP52: =DP51 -> 0 | DQ52: 0 | DR52: =DR51 -> 0 | DS52: 0 | DT52: =DT51 -> 0 | DU52: 0 | DV52: =DV51 -> 0 | DW52: 0 | DX52: =DX51 -> 0 | DY52: 0 | DZ52: =DZ51 -> 0 | EA52: 0 | EB52: =EB51 -> 0 | EC52: 0 | ED52: =ED51 -> 0 | EE52: =EE50 -> 0 | EF52: =EF51 -> 0 | EG52: 0 | EH52: =EH51 -> 0 | EI52: 0 | EJ52: =EJ51 -> 0 | EK52: 0 | EL52: =EL51 -> 0 | EM52: 0 | EN52: =EN51 -> 0 | EO52: 0 | EP52: =EP51 -> 0 | EQ52: 0
G53: =IF(varDisposalField="EVAPOTRANSPIRATION/ABSORPTION BED", "NUMBER OF TRENCHES", IF(OR(varDisposalField="SUBSURFACE IRRIGATION", varDisposalField="SPRAY IRRIGATION"), "NUMBER OF IRRIGATION LINES", "")) -> NUMBER OF TRENCHES | H53: =IF(varDisposalField="EVAPOTRANSPIRATION/ABSORPTION BED", AI54, IF(OR(varDisposalField="SUBSURFACE IRRIGATION", varDisposalField="SPRAY IRRIGATION"), H54/ H51, 1)) -> 2 | K53: =IF(ISBLANK(I53),H53,I53) -> 2 | AA53: Mass load perc'+ plant uptake kg/yr | AB53: =MIN(($AB$51*$AB$52),$AB$48) -> 11.31899258 | AF53: Envelope width (0 if SSI) | AG53: =ETALateralSepage -> 0.25 | AT53: =AT51 -> 2.25 | AU53: =AT51 -> 2.25 | AV53: =AV51 -> 6.25 | AW53: =AV53 -> 6.25 | AX53: =AX51 -> 0 | AY53: =AX53 -> 0 | AZ53: =AZ51 -> 0 | BA53: =AZ53 -> 0 | BB53: =BB51 -> 0 | BC53: =BB53 -> 0 | BD53: =BD51 -> 0 | BE53: =BD53 -> 0 | BF53: =BF51 -> 0 | BG53: =BF53 -> 0 | BH53: =BH51 -> 0 | BI53: =BH53 -> 0 | BJ53: =BJ51 -> 0 | BK53: =BJ53 -> 0 | BL53: =BL51 -> 0 | BM53: =BL53 -> 0 | BN53: =BN51 -> 0 | BO53: =BN53 -> 0 | BP53: =BP51 -> 0 | BQ53: =BP53 -> 0 | BR53: =BR51 -> 0 | BS53: =BR53 -> 0 | BT53: =BT51 -> 0 | BU53: =BT53 -> 0 | BV53: =BV51 -> 0 | BW53: =BV53 -> 0 | BX53: =BX51 -> 0 | BY53: =BX53 -> 0 | BZ53: =BZ51 -> 0 | CA53: =BZ53 -> 0 | CB53: =CB51 -> 0 | CC53: =CB53 -> 0 | CD53: =CD51 -> 0 | CE53: =CD53 -> 0 | CF53: =CF51 -> 0 | CG53: =CF53 -> 0 | CH53: =CH51 -> 0 | CI53: =CH53 -> 0 | CJ53: =CJ51 -> 0 | CK53: =CJ53 -> 0 | CL53: =CL51 -> 0 | CM53: =CL53 -> 0 | CN53: =CN51 -> 0 | CO53: =CN53 -> 0 | CP53: =CP51 -> 0 | CQ53: =CP53 -> 0 | CR53: =CR51 -> 0 | CS53: =CR53 -> 0 | CT53: =CT51 -> 0 | CU53: 0 | CV53: =CV51 -> 0 | CW53: 0 | CX53: =CX51 -> 0 | CY53: 0 | CZ53: =CZ51 -> 0 | DA53: 0 | DB53: =DB51 -> 0 | DC53: 0 | DD53: =DD51 -> 0 | DE53: 0 | DF53: =DF51 -> 0 | DG53: 0 | DH53: =DH51 -> 0 | DI53: 0 | DJ53: =DJ51 -> 0 | DK53: 0 | DL53: =DL51 -> 0 | DM53: 0 | DN53: =DN51 -> 0 | DO53: 0 | DP53: =DP51 -> 0 | DQ53: 0 | DR53: =DR51 -> 0 | DS53: 0 | DT53: =DT51 -> 0 | DU53: 0 | DV53: =DV51 -> 0 | DW53: 0 | DX53: =DX51 -> 0 | DY53: 0 | DZ53: =DZ51 -> 0 | EA53: 0 | EB53: =EB51 -> 0 | EC53: 0 | ED53: =ED51 -> 0 | EE53: 0 | EF53: =EF51 -> 0 | EG53: 0 | EH53: =EH51 -> 0 | EI53: 0 | EJ53: =EJ51 -> 0 | EK53: 0 | EL53: =EL51 -> 0 | EM53: 0 | EN53: =EN51 -> 0 | EO53: 0 | EP53: =EP51 -> 0 | EQ53: 0
G54: =IF(E50="EVAPOTRANSPIRATION/ABSORPTION BED", "ETA BED LENGTH (m)", IF(OR(E50="SUBSURFACE IRRIGATION", E50="SPRAY IRRIGATION"), "IRRIGATION AREA WIDTH (m)", "")) -> ETA BED LENGTH (m) | H54: =IF(varDisposalField="EVAPOTRANSPIRATION/ABSORPTION BED", AJ59, IF(OR(varDisposalField="SUBSURFACE IRRIGATION", varDisposalField="SPRAY IRRIGATION"), CEILING(varWaterBalanceArea/K52, 1), "")) -> 17.98 | S54: choosing the root zone depth based on disposal | X54: =IF($S$46=1, W49, IF(OR($S$46=2, $S$46=3), X49, "")) -> 0.15 | AA54: N uptake in hydraulic area kg/yr | AB54: =MIN(AB53,X68*varWaterBalanceArea/10000) -> 1.848 | AF54: HYDRAULIC AREA | AG54: =varWaterBalanceArea -> 92.4 | AH54: # trenches | AI54: 2
G55: =IF($S$46=1, "DEPTH OF SOIL ABOVE GRAVEL LAYER (m)", IF(OR($S$46=2, $S$46=3), "DEPTH OF SOIL IN ROOT ZONE (m)", "")) -> DEPTH OF SOIL ABOVE GRAVEL LAYER (m) | H55: =X54 -> 0.15 | S55: CHOOSING POROSITY OF GRAVEL BASED ON DISPOSAL | X55: =IF($S$46=1, W51, IF(OR($S$46=2, $S$46=3), Y51, "")) -> 0.43 | AA55: Actual Mass load percolated kg/yr | AB55: =MAX(0,AB53-AB54) -> 9.470992575 | AF55: x dim each bed | AG55: =(AG54/AI54) / (AG51+2*$AG$53) -> 18.48 | AH55: Envelope area | AI55: =$AG$55*$AG$56 -> 120.12 | AL55: version 24 tried to remove rectangles by simply making hydraulic area disapear ag54
G56: =IF($S$46=1, "DEPTH OF GRAVEL LAYER (mm)", IF(OR($S$46=2, $S$46=3), "", "")) -> DEPTH OF GRAVEL LAYER (mm) | H56: =X57 -> 0.25 | S56: Default AWC of bluemetal in trench below root zone | X56: 0 | AA56: N conc in perc'ed kg/L | AB56: =AB55/AB52 -> 3.431398185e-05 | AF56: max Y | AG56: =MAX(AT53:EQ53)+$AG$53 -> 6.5 | AH56: Max XY scale | AI56: =5*FLOOR((5+MAX($AG$56,$AG$55))/5,1) -> 20 | AX56: REDUCTION FROM NSW HEALTH ACCREDITATION
S57: CHOOSING DEPTH OF GRAVEL BASED ON DISPOSAL | X57: =IF($S$46=1, W50, IF(OR($S$46=2, $S$46=3), Y50, "")) -> 0.25 | AA57: N area | AB57: =(1-AJ71/X67)*10000*(X67/X68) -> 249.8893494 | AF57: max Y (no separation between beds) | AG57: =$AG$56-($AI$54-1)*($AH$51*($W$46=2)) -> 5 | AH57: ETA trench width | AI57: =K52 -> 2 | AJ57: m | AU57: AWTS | AX57: TN | AY57: TP | BD57: BSC REDUCTION | BG57: TN | BH57: TP
A58: DISPOSAL AREA REQUIREMENTS | AA58: DISTANCE BELOW ETA BED FOR TN | AB58: =(AB57-$AI$55)/$AG$55 -> 7.022150939 | AF58: Init (default) #trenches | AG58: =IF(AJ59 > 20, CEILING(AG54 / (20 * (AI57 + 2 * AG53)), 1), CEILING(AG54 / (AJ59 * (AI57 + 2 * AG53)), 1)) -> 3 | AH58: =CEILING($AG$54/( SQRT($AI$55) *($AG$51+2*$AG$53)),1) -> 4 | AI58: .<-alternative default # trenches (sqrt of area) | AU58: AWTS GENERIC | AX58: 0.2 | AY58: 0 | BD58: Septic (primary treatment only) | BG58: 0 | BH58: 0
A59: HYDRAULIC AREA | F59: 92.4 | G59: m2 | Y59: SSI | Z59: AREA | AA59: =varWaterBalanceArea -> 92.4 | AF59: Tot trench area | AG59: =(AG55-(2*AG49))*AI57*AI54 -> 71.92 | AI59: ETA length | AJ59: =AG55-2*AG49 -> 17.98 | AU59: BIOSEPTIC S TEN NR ADVANCED | AX59: 0.24 | AY59: 0.16 | BD59: Septic + single pass sandfilter (SPF) | BG59: 0.25 | BH59: 0
A60: NITROGEN AREA REQUIRED | F60: =IF(AB57 < 0, 0, AB57) -> 249.8893494 | G60: m2 | Z60: LENGTH | AA60: =IF(varDisposalField="evapotranspiration/absorption bed", 0, K52) -> 0 | AF60: Tot bed area | AG60: =AG55*AG57 -> 92.4 | AL60: =IF(AJ59>20, AJ59/varDefaultTrenchLength, AJ59) -> 17.98 | AU60: ENVIROCYCLE OXYFIX | AX60: 0.36 | AY60: 0.22 | BD60: Septic + SPF, 25% septic return flow | BG60: 0.3 | BH60: 0
A61: PHOSPHORUS AREA REQUIRED | F61: =IF(AA77< 0, 0, AA77) -> 35.13513514 | G61: m2 | S61: Soil Moisture Holding capacity: saturation and AWC( mm) | Z61: WIDTH | AF61: ratio trench A:tot beds A | AG61: =IF($W$46=1,1,$AG$59/$AG$60) -> 0.7783549784 | AU61: FUJICLEAN ACE 1200 | AX61: 0.79 | AY61: 0.14 | BD61: Septic + recirculating sandfilter | BG61: 0.45 | BH61: 0
A62: =IF(E50="EVAPOTRANSPIRATION/ABSORPTION BED", "ETA BED ENVELOPE PROVIDED (m2)", "") -> ETA BED ENVELOPE PROVIDED (m2) | F62: =IF(E50="EVAPOTRANSPIRATION/ABSORPTION BED",AI55,IF(OR(E50="SUBSURFACE IRRIGATION",E50="SPRAY IRRIGATION"),"")) -> 120.12 | G62: m2 | H62: INCREASE NUMBER OF TRENCHES | Y62: DISTANCE BELOW SSI FOR TN | AB62: =IFERROR(MAX(0, (F60 - $F$59)/$AA$60), 0) -> 0 | AU62: OZZI KLEEN RP10A+ | AX62: 0.82 | AY62: 0.48 | BD62: Septic + reedbed | BH62: 0
A63: NUTRIENT UPTAKE DISTANCE BELOW TRENCHES | F63: =NutrientDistanceBelow -> 7.022150939 | G63: m | Y63: NITROGEN REPORT | AE63: TN | AF63: TP | AO63: =(AB58*AG55)+AI55 -> 249.8893494 | AU63: OZZI KLEEN RP10S | AX63: 0.6 | AY63: 0.6
A64: NOTES: | B64: Will appear automatically and will need to be discussed in the report | S64: TN PRODUCED PER CAPITA KG/PERSON/YEAR | X64: 4.2 | Y64: N PLANT UPTAKE KG/YR | AA64: =AB54 -> 1.848 | AC64: N LIMIT - EXPONENTIAL CURVE | AJ64: BUFFER DISTANCES | AU64: OZZI KLEEN RP10S+ | AX64: 0.8 | AY64: 0.6
A65: =IF(AND(treatmentsystem = "septic + reedbed", I48 = "no", varDisposalField <> "EVAPOTRANSPIRATION/ABSORPTION BED"), "SECONDARY TREATMENT NOT ACHIEVED FOR IRRIGATION", IF(AND(treatmentsystem = "septic + reedbed", I48 = "no"), "SECONDARY TREATMENT NOT ACHIEVED BY WETLAND SURFACE AREA", IF(I49 = "no", "BOD NOT ACHIEVED BY WETLAND CELLS", "") ) ) -> SECONDARY TREATMENT NOT ACHIEVED BY WETLAND SURFACE AREA | H65: DECREASE NUMBER OF TRENCHES | S65: TN production per year (kg/year) | X65: =F28 -> 27.3 | Y65: N LOAD EXCEEDANCE | AA65: =X67-AB48 -> 0 | AC65: =AC66*(1-EXP(-AC67*AF65)) -> 6.321205588 | AD65: Y = A(1-EXP(-KX)) | AF65: =IF(H6 <= 100, (H4 * AI65 / AK65) / 10000, IF(H7 <= 40, (H4 * AI65 / AK66) / 10000, IF(AF68, (H4 * H7 / AK66) / 10000, IF(AF67, (H4 * H6 / AK65) / 10000, 1)))) -> 1 | AH65: PICKING DISTANCE | AI65: =IF(AND(H7<=40, H6<=100), IF(H7<40, H7, H6), IF(H7<=40, H7, IF(H6<=100, H6, ""))) -> 100 | AJ65: CREEK | AK65: 100 | AU65: TAYLEX ABSNR 2000 | AX65: 0.54 | AY65: 0.24
S66: TN REDUCED BY DISPOSAL FIELD | X66: 0.2 | Y66: N LOAD PERCOLATED KG/YR | AA66: =MAX(0,AB55) -> 9.470992575 | AC66: 10 | AD66: A | AJ66: GULLY | AK66: 40 | AU66: TAYLEX PABSNR 1350 | AX66: 0.66 | AY66: 0.26
A67: =IF(Y37>7, "LATERAL SEEPAGE 0.25 m PERMITTED DUE TO SOIL TYPE", "") -> LATERAL SEEPAGE 0.25 m PERMITTED DUE TO SOIL TYPE | S67: TN REDUCED BY ALL N LOSS (KG/YEAR) | X67: =X65*(1-K38)*(1-X66) -> 11.31899258 | Y67: N RELEASED (PERCOLATED + EXCEEDANCE) (KG/YR) | AA67: =SUM(AA65:AA66) -> 9.470992575 | AC67: 1 | AD67: K | AF67: =H6<100 -> FALSE
A68: =G32 -> REDUCED DESIGN LOADING RATE DUE TO BOD >20 mg/L | H68: =IF(H54 > 20, "Trench Length to be less than 20 meters", "") ->  | S68: PLANT UPTAKE TN (KG/HA/YEAR) | X68: 200 | Y68: ENVIRONMENTAL N LIMIT | AA68: =AC72 -> 6.321205588 | AC68: =AD65 -> Y = A(1-EXP(-KX)) | AF68: =H7<40 -> FALSE | AJ68: IF SUB. PROPOSED OR NOT
A69: =IF( OR( LEN(H10)>0, LEN(I16)>0, LEN(I19)>0, LEN(K23)>0, LEN(K24)>0, LEN(K25)>0, LEN(K26)>0, LEN(K27)>0, LEN(L23)>0, LEN(L24)>0, LEN(L25)>0, LEN(L26)>0, LEN(L27)>0, LEN(I38)>0, LEN(I39)>0, LEN(I51)>0, LEN(I52)>0, LEN(I55)>0, LEN(I56)>0, H6<100, H7<40 ), "USER OVERRIDE IS BEING USED: " & IF(H10<>"", I10 & "=" & TEXT(H10,"@") & "; ", "") & IF(I16<>"", A16 & "=" & TEXT(I16,"@") & "; ", "") & IF(I19<>"", A19 & "=" & TEXT(I19,"@") & "; ", "") & IF(K23<>"", K22 & "=" & TEXT(K23,"@") & "; ", "") & IF(K24<>"", K22 & "=" & TEXT(K24,"@") & "; ", "") & IF(K25<>"", K22 & "=" & TEXT(K25,"@") & "; ", "") & IF(K26<>"", K22 & "=" & TEXT(K26,"@") & "; ", "") & IF(K27<>"", K22 & "=" & TEXT(K27,"@") & "; ", "") & IF(L23<>"", L22 & "=" & TEXT(L23,"@") & "; ", "") & IF(L24<>"", L22 & "=" & TEXT(L24,"@") & "; ", "") & IF(L25<>"", L22 & "=" & TEXT(L25,"@") & "; ", "") & IF(L26<>"", L22 & "=" & TEXT(L26,"@") & "; ", "") & IF(L27<>"", L22 & "=" & TEXT(L27,"@") & "; ", "") & IF(I38<>"", D38 & "=" & TEXT(I38,"0.0%") & "; ", "") & IF(I39<>"", D39 & "=" & TEXT(I39,"0.0%") & "; ", "") & IF(I51<>"", G51 & "=" & TEXT(I51,"@") & "; ", "") & IF(I52<>"", G52 & "=" & TEXT(I52,"@") & "; ", "") & IF(I55<>"", G55 & "=" & TEXT(I55,"@") & "; ", "") & IF(I56<>"", G56 & "=" & TEXT(I56,"@") & "; ", "") & IF(H6<100, A6 & "=" & TEXT(H6,"@") & "; ", "") & IF(H7<40, A7 & "=" & TEXT(H7,"@") & "; ", ""), "" ) ->  | O69: From BSC model | AA69: SEE CELL YES OR NO IF AREA IS LIMITING | AJ69: YES | AK69: =AC65 -> 6.321205588
O70: BucketCap at sat (mm) | Q70: =1000*((($BF$30*$BF$32 + $BF$31*$BF$33)*$AG$61) + (($BF$30+$BF$31)*$BF$32)*(1-$AG$61)) -> 153.512987 | AD70: WITHOUT AREA AS THE LIMITING FACTOR | AJ70: NO | AK70: =AC72 -> 6.321205588 | AL70: 1 | AM70: 25 | AN70: =AM70*$Z$40 -> 21.16548442
O71: BucketCap at AWC (mm) | Q71: =1000*((($BF$30*$BF$34 + $BF$31*$X$56)*$AG$61) + (($BF$30+$BF$31)*$BF$34)*(1-$AG$61)) -> 26.7034632 | Z71: PHOSPHORUS | AC71: =((MAX(H4, 10000) * AI65) / AK65) / 10000 -> 1 | AD71: treat any allotment size below 10000m2 as if it is 10000m2 | AJ71: =IF(G4="Yes", VLOOKUP("Yes", AJ69:AK70, 2, FALSE), IF(H4>10000, AK69, VLOOKUP("No", AJ69:AK70, 2, FALSE))) -> 6.321205588 | AL71: 2 | AM71: 25 | AN71: =AM71*$Z$40 -> 21.16548442 | AR71: tn equation from council model
H72: =IF(H54 > 20, "Trench Length to be less than 20 meters", "") ->  | T72: WA NEW | Z72: P IN EFFLUENT (KG/Y) | AA72: =(J27+F27)*(1-K39) -> 3.9 | AC72: =AC73*(1-EXP(-AC74*AC71)) -> 6.321205588 | AD72: Nlim kg/yr allowable nitogen export | AL72: 3 | AM72: 25 | AN72: 21.16548442 | AR72: IF(D6<AD13,MIN(AD8,D5),D5)/10000
I73: PERCOLATION | L73: Actual Soil Moisture (mm) | M73: Rainfall Infiltrating (mm) | O73: Exceedance (mm) | P73: Effluent Irrigation Rate (mm/day) | T73: Crop factors for grass | Z73: P UPTAKE BY PLANTS (KG/HA/Y) | AA73: 10 | AC73: 10 | AL73: 4 | AM73: 22 | AN73: 18.62562629 | AR73: (D5*D6/AD13)/10000
F74: Maximum | L74: =MAX(L79:L7748) -> 0 | M74: =MAX(M79:M7748) -> 125.84 | O74: =MAX(O79:O16157) -> 8.441558442 | P74: =MAX(P79:P16157) -> 8.441558442 | U74: new | Z74: P SORPTION (KG/Y) | AA74: =BF19 -> 10000 | AC74: 1 | AL74: 5 | AM74: 20 | AN74: 16.93238754 | AR74: INDEX(AE13:AF13,AC13)
A75: PERMISSIBLE EXCEEDANCE | C75: 0.05 | F75: Permissible | O75: =PERCENTILE(O$79:O16157, 1-$C$75) -> 0 | S75: 1 | T75: Jan | U75: 0.78 | Z75: BUFFER TO WATERTABLE (M) | AA75: 0.5 | AL75: 6 | AM75: 20 | AN75: 16.93238754
A76: Daily Irrigation | C76: =D28/F59 -> 8.441558442 | D76: mm/day/m2 | F76: Minimum | L76: =MIN(L79:L7748) -> 0 | S76: 2 | T76: Feb | U76: 0.78 | Z76: ACCUMULATION OF P (YEARS) | AA76: 50 | AL76: 7 | AM76: 20 | AN76: 16.93238754
A77: 95th percentile exceedance | C77: =PERCENTILE(O$79:O$7748,0.95) -> 0.03090148875 | F77: Yearly avg. | G77: =AVERAGE($G$79:$G$16157)*365 -> 1109.170849 | I77: =AVERAGE($I$79:$I$16157)*365 -> 2987.118199 | M77: =AVERAGE($M$79:$M$16157)*365 -> 1015.725987 | O77: =AVERAGE($O$79:$O$16157)*365 -> 95.05125475 | P77: =AVERAGE($P$79:$P$16157)*365 -> 3081.168831 | S77: 3 | T77: Mar | U77: 0.77 | AA77: =$AA$72*10000/ (($AA$74*($H$8-$AA$75) /$AA$76) +$AA$73) -> 35.13513514 | AB77: m | AL77: 8 | AM77: 10 | AN77: 8.466193769
A78: Year | B78: Month | C78: Day | D78: Evap. (mm) | E78: Rainfall (mm) | F78: Crop Factor | G78: Evapo-Trans. (mm) | I78: Per-colation (mm/day) | J78: Reedbed | K78: Balance (mm) | M78: Rainfall Infiltrating (mm) | O78: Exceedance | P78: Effluent irrigation rate | Q78: Actual Soil moisture | S78: 4 | T78: Apr | U78: 0.76 | Z78: DISTANCE BELOW ETA BED FOR TP | AA78: =(AA77-$AI$55)/$AG$55 -> -4.598748099 | AB78: =MAX(0, TNDistanceBelowETA, AA78) -> 7.022150939 | AC78: max distance | AL78: 9 | AM78: 12 | AN78: 10.15943252
A79: 1980 | B79: 7 | C79: 1 | D79: 4.2 | E79: 0 | F79: =INDEX($U$75:$U$86,MONTH(R79)) -> 0.65 | G79: =D79*F79 -> 2.73 | I79: 0 | M79: 0 | Q79: =Q70/2 -> 76.75649351 | R79: =DATE(A79,B79,C79) -> 29403 | S79: 5 | T79: May | U79: 0.72 | AB79: =MAX(F60:F61) -> 249.8893494 | AC79: max nutrient area | AL79: 10 | AM79: 10 | AN79: 8.466193769
A80: 1980 | B80: 7 | C80: 2 | D80: 2.6 | E80: 0 | F80: 0.65 | G80: =D80*F80 -> 1.69 | I80: =MIN($H$32,MAX(0,$Q79-$Q$71)) -> 10.15943252 | M80: =MIN($K$12*E80,$Q$70-Q79+G80+I80) -> 0 | O80: =MAX(0,Q79+M80+$C$76-$Q$70-I80-G80) -> 0 | P80: =$C$76 -> 8.441558442 | Q80: =MAX(0,Q79+M80+P80-G80-I80) -> 73.34861942 | R80: 29404 | S80: 6 | T80: Jun | U80: 0.67 | AL80: 11 | AM80: 8 | AN80: 6.772955016
A81: 1980 | B81: 7 | C81: 3 | D81: 3.4 | E81: 0 | F81: 0.65 | G81: =D81*F81 -> 2.21 | I81: 10.15943252 | M81: 0 | O81: 0 | P81: =$C$76 -> 8.441558442 | Q81: =MAX(0,Q80+M81+P81-G81-I81) -> 69.42074534 | R81: 29405 | S81: 7 | T81: Jul | U81: 0.65 | AL81: 12 | AM81: 5 | AN81: 4.233096885
A82: 1980 | B82: 7 | C82: 4 | D82: 3.5 | E82: 0 | F82: 0.65 | G82: 2.275 | I82: 10.15943252 | M82: 0 | O82: 0 | P82: 8.441558442 | Q82: 65.42787126 | R82: 29406 | S82: 8 | T82: Aug | U82: 0.66 | AL82: 13 | AM82: 4 | AN82: 3.386477508
A83: 1980 | B83: 7 | C83: 5 | D83: 4.5 | E83: 0 | F83: 0.65 | G83: 2.925 | I83: 10.15943252 | M83: 0 | O83: 0 | P83: 8.441558442 | Q83: 60.78499718 | R83: 29407 | S83: 9 | T83: Sep | U83: 0.7 | AL83: 14 | AM83: 4 | AN83: 3.386477508
A84: 1980 | B84: 7 | C84: 6 | D84: 3.3 | E84: 0 | F84: 0.65 | G84: 2.145 | I84: 10.15943252 | M84: 0 | O84: 0 | P84: 8.441558442 | Q84: 56.9221231 | R84: 29408 | S84: 10 | T84: Oct | U84: 0.75
A85: 1980 | B85: 7 | C85: 7 | D85: 2.7 | E85: 0 | F85: 0.65 | G85: 1.755 | I85: 10.15943252 | M85: 0 | O85: 0 | P85: 8.441558442 | Q85: 53.44924902 | R85: 29409 | S85: 11 | T85: Nov | U85: 0.77
A86: 1980 | B86: 7 | C86: 8 | D86: 2.5 | E86: 0 | F86: 0.65 | G86: 1.625 | I86: 10.15943252 | M86: 0 | O86: 0 | P86: 8.441558442 | Q86: 50.10637493 | R86: 29410 | S86: 12 | T86: Dec | U86: 0.78
A87: 1980 | B87: 7 | C87: 9 | D87: 3 | E87: 0 | F87: 0.65 | G87: 1.95 | I87: 10.15943252 | M87: 0 | O87: 0 | P87: 8.441558442 | Q87: 46.43850085 | R87: 29411
A88: 1980 | B88: 7 | C88: 10 | D88: 3.6 | E88: 0 | F88: 0.65 | G88: 2.34 | I88: 10.15943252 | M88: 0 | O88: 0 | P88: 8.441558442 | Q88: 42.38062677 | R88: 29412
A89: 1980 | B89: 7 | C89: 11 | D89: 3.3 | E89: 0 | F89: 0.65 | G89: 2.145 | I89: 10.15943252 | M89: 0 | O89: 0 | P89: 8.441558442 | Q89: 38.51775269 | R89: 29413
A90: 1980 | B90: 7 | C90: 12 | D90: 1 | E90: 0 | F90: 0.65 | G90: 0.65 | I90: 10.15943252 | M90: 0 | O90: 0 | P90: 8.441558442 | Q90: 36.14987861 | R90: =DATE(A90,B90,C90) -> 29414
A91: 1980 | B91: 7 | C91: 13 | D91: 2.6 | E91: 0 | F91: 0.65 | G91: 1.69 | I91: 9.446415403 | M91: 0 | O91: 0 | P91: 8.441558442 | Q91: 33.45502165 | R91: 29415
A92: 1980 | B92: 7 | C92: 14 | D92: 2.2 | E92: 0 | F92: 0.65 | G92: 1.43 | I92: 6.751558442 | M92: 0 | O92: 0 | P92: 8.441558442 | Q92: 33.71502165 | R92: 29416
A93: 1980 | B93: 7 | C93: 15 | D93: 2.9 | E93: 0 | F93: 0.65 | G93: 1.885 | I93: 7.011558442 | M93: 0 | O93: 0 | P93: 8.441558442 | Q93: 33.26002165 | R93: 29417
A94: 1980 | B94: 7 | C94: 16 | D94: 1.1 | E94: 0.4 | F94: 0.65 | G94: 0.715 | I94: 6.556558442 | M94: 0.26 | O94: 0 | P94: 8.441558442 | Q94: 34.69002165 | R94: 29418
A95: 1980 | B95: 7 | C95: 17 | D95: 1.8 | E95: 0 | F95: 0.65 | G95: 1.17 | I95: 7.986558442 | M95: 0 | O95: 0 | P95: 8.441558442 | Q95: 33.97502165 | R95: 29419
A96: 1980 | B96: 7 | C96: 18 | D96: 2.5 | E96: 0 | F96: 0.65 | G96: 1.625 | I96: 7.271558442 | K96: =N95+G96+$C$76+J96-H96-I96 -> 2.795 | M96: 0 | O96: 0 | P96: 8.441558442 | Q96: 33.52002165 | R96: 29420
A97: 1980 | B97: 7 | C97: 19 | D97: 3.7 | E97: 0 | F97: 0.65 | G97: 2.405 | I97: 6.816558442 | K97: 4.03 | M97: 0 | O97: 0 | P97: 8.441558442 | Q97: 32.74002165 | R97: 29421
A98: 1980 | B98: 7 | C98: 20 | D98: 2.6 | E98: 0 | F98: 0.65 | G98: 1.69 | I98: 6.036558442 | K98: 4.095 | M98: 0 | O98: 0 | P98: 8.441558442 | Q98: 33.45502165 | R98: 29422
A99: 1980 | B99: 7 | C99: 21 | D99: 4.4 | E99: 0 | F99: 0.65 | G99: 2.86 | I99: 6.751558442 | K99: 4.55 | M99: 0 | O99: 0 | P99: 8.441558442 | Q99: 32.28502165 | R99: 29423
A100: 1980 | B100: 7 | C100: 22 | D100: 3.8 | E100: 0 | F100: 0.65 | G100: 2.47 | I100: 5.581558442 | K100: 5.33 | M100: 0 | O100: 0 | P100: 8.441558442 | Q100: 32.67502165 | R100: 29424
A101: 1980 | B101: 7 | C101: 23 | D101: 2.9 | E101: 0 | F101: 0.65 | G101: 1.885 | I101: 5.971558442 | K101: 4.355 | M101: 0 | O101: 0 | P101: 8.441558442 | Q101: 33.26002165 | R101: 29425
A102: 1980 | B102: 7 | C102: 24 | D102: 2.6 | E102: 2.2 | F102: 0.65 | G102: 1.69 | I102: 6.556558442 | K102: 3.575 | M102: 1.43 | O102: 0 | P102: 8.441558442 | Q102: 34.88502165 | R102: 29426
A103: 1980 | B103: 7 | C103: 25 | D103: 2.4 | E103: 1 | F103: 0.65 | G103: 1.56 | I103: 8.181558442 | K103: 1.82 | M103: 0.65 | O103: 0 | P103: 8.441558442 | Q103: 34.23502165 | R103: 29427
A104: 1980 | B104: 7 | C104: 26 | D104: 1.7 | E104: 4 | F104: 0.65 | G104: 1.105 | I104: 7.531558442 | K104: 2.015 | M104: 2.6 | O104: 0 | P104: 8.441558442 | Q104: 36.64002165 | R104: 29428
A105: 1980 | B105: 7 | C105: 27 | D105: 2 | E105: 10.6 | F105: 0.65 | G105: 1.3 | I105: 9.936558442 | K105: -0.195 | M105: 6.89 | O105: 0 | P105: 8.441558442 | Q105: 40.73502165 | R105: 29429
A106: 1980 | B106: 7 | C106: 28 | D106: 1.1 | E106: 4.6 | F106: 0.65 | G106: 0.715 | I106: 10.15943252 | K106: -1.002874082 | M106: 2.99 | O106: 0 | P106: 8.441558442 | Q106: 41.29214756 | R106: 29430
A107: 1980 | B107: 7 | C107: 29 | D107: 1.3 | E107: 0 | F107: 0.65 | G107: 0.845 | I107: 10.15943252 | K107: -0.8728740818 | M107: 0 | O107: 0 | P107: 8.441558442 | Q107: 38.72927348 | R107: 29431
A108: 1980 | B108: 7 | C108: 30 | D108: 2.3 | E108: 1 | F108: 0.65 | G108: 1.495 | I108: 10.15943252 | K108: -0.2228740818 | M108: 0.65 | O108: 0 | P108: 8.441558442 | Q108: 36.1663994 | R108: 29432
A109: 1980 | B109: 7 | C109: 31 | D109: 1.7 | E109: 22.6 | F109: 0.65 | G109: 1.105 | I109: 9.462936196 | K109: 0.08362224536 | M109: 14.69 | O109: 0 | P109: 8.441558442 | Q109: 48.73002165 | R109: 29433
A110: 1980 | B110: 8 | C110: 1 | D110: 1.4 | E110: 4.8 | F110: 0.66 | G110: 0.924 | I110: 10.15943252 | K110: -0.7938740818 | M110: 3.12 | O110: 0 | P110: 8.441558442 | Q110: 49.20814756 | R110: 29434
A111: 1980 | B111: 8 | C111: 2 | D111: 2.8 | E111: 0 | F111: 0.66 | G111: 1.848 | I111: 10.15943252 | K111: 0.1301259182 | M111: 0 | O111: 0 | P111: 8.441558442 | Q111: 45.64227348 | R111: 29435
A112: 1980 | B112: 8 | C112: 3 | D112: 3.8 | E112: 0 | F112: 0.66 | G112: 2.508 | I112: 10.15943252 | K112: 0.7901259182 | M112: 0 | O112: 0 | P112: 8.441558442 | Q112: 41.4163994 | R112: 29436
A113: 1980 | B113: 8 | C113: 4 | D113: 4 | E113: 0 | F113: 0.66 | G113: 2.64 | I113: 10.15943252 | K113: 0.9221259182 | M113: 0 | O113: 0 | P113: 8.441558442 | Q113: 37.05852532 | R113: 29437
A114: 1980 | B114: 8 | C114: 5 | D114: 1.8 | E114: 0 | F114: 0.66 | G114: 1.188 | I114: 10.15943252 | K114: -0.5298740818 | M114: 0 | O114: 0 | P114: 8.441558442 | Q114: 34.15265124 | R114: 29438
A115: 1980 | B115: 8 | C115: 6 | D115: 2.1 | E115: 0 | F115: 0.66 | G115: 1.386 | I115: 7.449188033 | K115: 2.378370409 | M115: 0 | O115: 0 | P115: 8.441558442 | Q115: 33.75902165 | R115: 29439
A116: 1980 | B116: 8 | C116: 7 | D116: 1.9 | E116: 0 | F116: 0.66 | G116: 1.254 | I116: 7.055558442 | K116: 2.64 | M116: 0 | O116: 0 | P116: 8.441558442 | Q116: 33.89102165 | R116: 29440
A117: 1980 | B117: 8 | C117: 8 | D117: 1.8 | E117: 0.3 | F117: 0.66 | G117: 1.188 | I117: 7.187558442 | K117: 2.442 | M117: 0.195 | O117: 0 | P117: 8.441558442 | Q117: 34.15202165 | R117: 29441
A118: 1980 | B118: 8 | C118: 9 | D118: 4 | E118: 0 | F118: 0.66 | G118: 2.64 | I118: 7.448558442 | K118: 3.633 | M118: 0 | O118: 0 | P118: 8.441558442 | Q118: 32.50502165 | R118: 29442
A119: 1980 | B119: 8 | C119: 10 | D119: 3.1 | E119: 0 | F119: 0.66 | G119: 2.046 | I119: 5.801558442 | K119: 4.686 | M119: 0 | O119: 0 | P119: 8.441558442 | Q119: 33.09902165 | R119: 29443
A120: 1980 | B120: 8 | C120: 11 | D120: 2.5 | E120: 0 | F120: 0.66 | G120: 1.65 | I120: 6.395558442 | K120: 3.696 | M120: 0 | O120: 0 | P120: 8.441558442 | Q120: 33.49502165 | R120: 29444
A121: 1980 | B121: 8 | C121: 12 | D121: 4.4 | E121: 0 | F121: 0.66 | G121: 2.904 | I121: 6.791558442 | K121: 4.554 | M121: 0 | O121: 0 | P121: 8.441558442 | Q121: 32.24102165 | R121: 29445
A122: 1980 | B122: 8 | C122: 13 | D122: 2.7 | E122: 0 | F122: 0.66 | G122: 1.782 | I122: 5.537558442 | K122: 4.686 | M122: 0 | O122: 0 | P122: 8.441558442 | Q122: 33.36302165 | R122: 29446
A123: 1980 | B123: 8 | C123: 14 | D123: 3.4 | E123: 3.4 | F123: 0.66 | G123: 2.244 | I123: 6.659558442 | K123: 4.026 | M123: 2.21 | O123: 0 | P123: 8.441558442 | Q123: 35.11102165 | R123: 29447
A124: 1980 | B124: 8 | C124: 15 | D124: 2.4 | E124: 0 | F124: 0.66 | G124: 1.584 | I124: 8.407558442 | K124: 1.618 | M124: 0 | O124: 0 | P124: 8.441558442 | Q124: 33.56102165 | R124: 29448
A125: 1980 | B125: 8 | C125: 16 | D125: 7.1 | E125: 0 | F125: 0.66 | G125: 4.686 | I125: 6.857558442 | K125: 6.27 | M125: 0 | O125: 0 | P125: 8.441558442 | Q125: 30.45902165 | R125: 29449
A126: 1980 | B126: 8 | C126: 17 | D126: 4 | E126: 0 | F126: 0.66 | G126: 2.64 | I126: 3.755558442 | K126: 7.326 | M126: 0 | O126: 0 | P126: 8.441558442 | Q126: 32.50502165 | R126: 29450
A127: 1980 | B127: 8 | C127: 18 | D127: 2.6 | E127: 2.4 | F127: 0.66 | G127: 1.716 | I127: 5.801558442 | K127: 4.356 | M127: 1.56 | O127: 0 | P127: 8.441558442 | Q127: 34.98902165 | R127: 29451
A128: 1980 | B128: 8 | C128: 19 | D128: 3.4 | E128: 7.3 | F128: 0.66 | G128: 2.244 | I128: 8.285558442 | K128: 2.4 | M128: 4.745 | O128: 0 | P128: 8.441558442 | Q128: 37.64602165 | R128: 29452
A129: 1980 | B129: 8 | C129: 20 | D129: 2.4 | E129: 4.4 | F129: 0.66 | G129: 1.584 | I129: 10.15943252 | K129: -0.1338740818 | M129: 2.86 | O129: 0 | P129: 8.441558442 | Q129: 37.20414756 | R129: 29453
A130: 1980 | B130: 8 | C130: 21 | D130: 3.2 | E130: 0 | F130: 0.66 | G130: 2.112 | I130: 10.15943252 | K130: 0.3941259182 | M130: 0 | O130: 0 | P130: 8.441558442 | Q130: 33.37427348 | R130: 29454
A131: 1980 | B131: 8 | C131: 22 | D131: 3.5 | E131: 2.6 | F131: 0.66 | G131: 2.31 | I131: 6.670810278 | K131: 4.080748164 | M131: 1.69 | O131: 0 | P131: 8.441558442 | Q131: 34.52502165 | R131: 29455
A132: 1980 | B132: 8 | C132: 23 | D132: 4 | E132: 0 | F132: 0.66 | G132: 2.64 | I132: 7.821558442 | K132: 3.26 | M132: 0 | O132: 0 | P132: 8.441558442 | Q132: 32.50502165 | R132: 29456
A133: 1980 | B133: 8 | C133: 24 | D133: 4.6 | E133: 0 | F133: 0.66 | G133: 3.036 | I133: 5.801558442 | K133: 5.676 | M133: 0 | O133: 0 | P133: 8.441558442 | Q133: 32.10902165 | R133: 29457
A134: 1980 | B134: 8 | C134: 25 | D134: 5.2 | E134: 0 | F134: 0.66 | G134: 3.432 | I134: 5.405558442 | K134: 6.468 | M134: 0 | O134: 0 | P134: 8.441558442 | Q134: 31.71302165 | R134: 29458
A135: 1980 | B135: 8 | C135: 26 | D135: 2.6 | E135: 7.4 | F135: 0.66 | G135: 1.716 | I135: 5.009558442 | K135: 5.148 | M135: 4.81 | O135: 0 | P135: 8.441558442 | Q135: 38.23902165 | R135: 29459
A136: 1980 | B136: 8 | C136: 27 | D136: 5.1 | E136: 0 | F136: 0.66 | G136: 3.366 | I136: 10.15943252 | K136: 1.648125918 | M136: 0 | O136: 0 | P136: 8.441558442 | Q136: 33.15514756 | R136: 29460
A137: 1980 | B137: 8 | C137: 28 | D137: 3.6 | E137: 0 | F137: 0.66 | G137: 2.376 | I137: 6.45168436 | K137: 4.365874082 | M137: 0 | O137: 0 | P137: 8.441558442 | Q137: 32.76902165 | R137: 29461
A138: 1980 | B138: 8 | C138: 29 | D138: 3.7 | E138: 0 | F138: 0.66 | G138: 2.442 | I138: 6.065558442 | K138: 4.818 | M138: 0 | O138: 0 | P138: 8.441558442 | Q138: 32.70302165 | R138: 29462
A139: 1980 | B139: 8 | C139: 30 | D139: 3.9 | E139: 0 | F139: 0.66 | G139: 2.574 | I139: 5.999558442 | K139: 5.016 | M139: 0 | O139: 0 | P139: 8.441558442 | Q139: 32.57102165 | R139: 29463
A140: 1980 | B140: 8 | C140: 31 | D140: 5.8 | E140: 0 | F140: 0.66 | G140: 3.828 | I140: 5.867558442 | K140: 6.402 | M140: 0 | O140: 0 | P140: 8.441558442 | Q140: 31.31702165 | R140: 29464
A141: 1980 | B141: 9 | C141: 1 | D141: 7.6 | E141: 0 | F141: 0.7 | G141: 5.32 | I141: 4.613558442 | K141: 9.148 | M141: 0 | O141: 0 | P141: 8.441558442 | Q141: 29.82502165 | R141: 29465
A142: 1980 | B142: 9 | C142: 2 | D142: 5.6 | E142: 0 | F142: 0.7 | G142: 3.92 | I142: 3.121558442 | K142: 9.24 | M142: 0 | O142: 0 | P142: 8.441558442 | Q142: 31.22502165 | R142: 29466
A143: 1980 | B143: 9 | C143: 3 | D143: 5 | E143: 0 | F143: =INDEX($U$75:$U$86,MONTH(R143)) -> 0.7 | G143: 3.5 | I143: 4.521558442 | K143: 7.42 | M143: 0 | O143: 0 | P143: 8.441558442 | Q143: 31.64502165 | R143: =DATE(A143,B143,C143) -> 29467
A144: 1980 | B144: 9 | C144: 4 | D144: 5.9 | E144: 0 | F144: 0.7 | G144: 4.13 | I144: =MIN($H$32,MAX(0,$Q143-$Q$71)) -> 4.941558442 | K144: 7.63 | M144: =MIN($K$12*E144,$Q$70-Q143+G144+I144) -> 0 | O144: =MAX(0,Q143+M144+$C$76-$Q$70-I144-G144) -> 0 | P144: 8.441558442 | Q144: 31.01502165 | R144: 29468
A145: 1980 | B145: 9 | C145: 5 | D145: 3.5 | E145: 0 | F145: 0.7 | G145: =D145*F145 -> 2.45 | I145: 4.311558442 | K145: 6.58 | M145: 0 | O145: 0 | P145: =$C$76 -> 8.441558442 | Q145: =MAX(0,Q144+M145+P145-G145-I145) -> 32.69502165 | R145: 29469
A146: 1980 | B146: 9 | C146: 6 | D146: 4.4 | E146: 0 | F146: 0.7 | G146: 3.08 | I146: 5.991558442 | K146: 5.53 | M146: 0 | O146: 0 | P146: 8.441558442 | Q146: 32.06502165 | R146: 29470
A147: 1980 | B147: 9 | C147: 7 | D147: 3.2 | E147: 0 | F147: 0.7 | G147: 2.24 | I147: 5.361558442 | K147: 5.32 | M147: 0 | O147: 0 | P147: 8.441558442 | Q147: 32.90502165 | R147: 29471
A148: 1980 | B148: 9 | C148: 8 | D148: 6.8 | E148: 0 | F148: 0.7 | G148: 4.76 | I148: 6.201558442 | K148: 7 | M148: 0 | O148: 0 | P148: 8.441558442 | Q148: 30.38502165 | R148: 29472
A149: 1980 | B149: 9 | C149: 9 | D149: 10.4 | E149: 0 | F149: 0.7 | G149: 7.28 | I149: 3.681558442 | K149: 12.04 | M149: 0 | O149: 0 | P149: 8.441558442 | Q149: 27.86502165 | R149: 29473
A150: 1980 | B150: 9 | C150: 10 | D150: 10.4 | E150: 0 | F150: 0.7 | G150: 7.28 | I150: 1.161558442 | K150: 14.56 | M150: 0 | O150: 0 | P150: 8.441558442 | Q150: 27.86502165 | R150: 29474
A151: 1980 | B151: 9 | C151: 11 | D151: 4.6 | E151: 0 | F151: 0.7 | G151: 3.22 | I151: 1.161558442 | K151: 10.5 | M151: 0 | O151: 0 | P151: 8.441558442 | Q151: 31.92502165 | R151: 29475
A152: 1980 | B152: 9 | C152: 12 | D152: 5.7 | E152: 0 | F152: 0.7 | G152: 3.99 | I152: 5.221558442 | K152: 7.21 | M152: 0 | O152: 0 | P152: 8.441558442 | Q152: 31.15502165 | R152: 29476
A153: 1980 | B153: 9 | C153: 13 | D153: 4.4 | E153: 0 | F153: 0.7 | G153: 3.08 | I153: 4.451558442 | K153: =N152+G153+$C$76+J153-H153-I153 -> 7.07 | M153: 0 | O153: 0 | P153: 8.441558442 | Q153: 32.06502165 | R153: 29477
A154: 1980 | B154: 9 | C154: 14 | D154: 3.8 | E154: 0 | F154: 0.7 | G154: 2.66 | I154: 5.361558442 | K154: 5.74 | M154: 0 | O154: 0 | P154: 8.441558442 | Q154: 32.48502165 | R154: 29478
A155: 1980 | B155: 9 | C155: 15 | D155: 5.1 | E155: 0 | F155: 0.7 | G155: 3.57 | I155: 5.781558442 | K155: 6.23 | M155: 0 | O155: 0 | P155: 8.441558442 | Q155: 31.57502165 | R155: 29479
A156: 1980 | B156: 9 | C156: 16 | D156: 7.4 | E156: 0 | F156: 0.7 | G156: 5.18 | I156: 4.871558442 | K156: 8.75 | M156: 0 | O156: 0 | P156: 8.441558442 | Q156: 29.96502165 | R156: 29480
A157: 1980 | B157: 9 | C157: 17 | D157: 5.4 | E157: 0 | F157: 0.7 | G157: 3.78 | I157: 3.261558442 | K157: 8.96 | M157: 0 | O157: 0 | P157: 8.441558442 | Q157: 31.36502165 | R157: 29481
A158: 1980 | B158: 9 | C158: 18 | D158: 5.9 | E158: 0 | F158: 0.7 | G158: 4.13 | I158: 4.661558442 | K158: 7.91 | M158: 0 | O158: 0 | P158: 8.441558442 | Q158: 31.01502165 | R158: 29482
A159: 1980 | B159: 9 | C159: 19 | D159: 8.9 | E159: 0 | F159: 0.7 | G159: 6.23 | I159: 4.311558442 | K159: 10.36 | M159: 0 | O159: 0 | P159: 8.441558442 | Q159: 28.91502165 | R159: 29483
A160: 1980 | B160: 9 | C160: 20 | D160: 6.6 | E160: 0 | F160: 0.7 | G160: 4.62 | I160: 2.211558442 | K160: 10.85 | M160: 0 | O160: 0 | P160: 8.441558442 | Q160: 30.52502165 | R160: 29484
A161: 1980 | B161: 9 | C161: 21 | D161: 5 | E161: 0 | F161: 0.7 | G161: 3.5 | I161: 3.821558442 | K161: 8.12 | M161: 0 | O161: 0 | P161: 8.441558442 | Q161: 31.64502165 | R161: 29485
A162: 1980 | B162: 9 | C162: 22 | D162: 6.7 | E162: 0 | F162: 0.7 | G162: 4.69 | I162: 4.941558442 | K162: 8.19 | M162: 0 | O162: 0 | P162: 8.441558442 | Q162: 30.45502165 | R162: 29486
A163: 1980 | B163: 9 | C163: 23 | D163: 5.7 | E163: 0 | F163: 0.7 | G163: 3.99 | I163: 3.751558442 | K163: 8.68 | M163: 0 | O163: 0 | P163: 8.441558442 | Q163: 31.15502165 | R163: 29487
A164: 1980 | B164: 9 | C164: 24 | D164: 4.4 | E164: 0 | F164: 0.7 | G164: 3.08 | I164: 4.451558442 | K164: 7.07 | M164: 0 | O164: 0 | P164: 8.441558442 | Q164: 32.06502165 | R164: 29488
A165: 1980 | B165: 9 | C165: 25 | D165: 5.4 | E165: 0 | F165: 0.7 | G165: 3.78 | I165: 5.361558442 | K165: 6.86 | M165: 0 | O165: 0 | P165: 8.441558442 | Q165: 31.36502165 | R165: 29489
A166: 1980 | B166: 9 | C166: 26 | D166: 4.7 | E166: 0 | F166: 0.7 | G166: 3.29 | I166: 4.661558442 | K166: 7.07 | M166: 0 | O166: 0 | P166: 8.441558442 | Q166: 31.85502165 | R166: 29490
A167: 1980 | B167: 9 | C167: 27 | D167: 4.2 | E167: 0 | F167: 0.7 | G167: 2.94 | I167: 5.151558442 | K167: 6.23 | M167: 0 | O167: 0 | P167: 8.441558442 | Q167: 32.20502165 | R167: 29491
A168: 1980 | B168: 9 | C168: 28 | D168: 3.6 | E168: 0 | F168: 0.7 | G168: 2.52 | I168: 5.501558442 | K168: 5.46 | M168: 0 | O168: 0 | P168: 8.441558442 | Q168: 32.62502165 | R168: 29492
A169: 1980 | B169: 9 | C169: 29 | D169: 5.9 | E169: 0 | F169: 0.7 | G169: 4.13 | I169: 5.921558442 | K169: 6.65 | M169: 0 | O169: 0 | P169: 8.441558442 | Q169: 31.01502165 | R169: 29493
A170: 1980 | B170: 9 | C170: 30 | D170: 6.7 | E170: 0 | F170: 0.7 | G170: 4.69 | I170: 4.311558442 | K170: 8.82 | M170: 0 | O170: 0 | P170: 8.441558442 | Q170: 30.45502165 | R170: 29494
A171: 1980 | B171: 10 | C171: 1 | D171: 6.6 | E171: 0 | F171: 0.75 | G171: 4.95 | I171: 3.751558442 | K171: 9.64 | M171: 0 | O171: 0 | P171: 8.441558442 | Q171: 30.19502165 | R171: 29495
A172: 1980 | B172: 10 | C172: 2 | D172: 6.8 | E172: 0 | F172: 0.75 | G172: 5.1 | I172: 3.491558442 | K172: 10.05 | M172: 0 | O172: 0 | P172: 8.441558442 | Q172: 30.04502165 | R172: 29496
A173: 1980 | B173: 10 | C173: 3 | D173: 7.9 | E173: 0 | F173: 0.75 | G173: 5.925 | I173: 3.341558442 | K173: 11.025 | M173: 0 | O173: 0 | P173: 8.441558442 | Q173: 29.22002165 | R173: 29497
A174: 1980 | B174: 10 | C174: 4 | D174: 6 | E174: 0 | F174: 0.75 | G174: 4.5 | I174: 2.516558442 | K174: 10.425 | M174: 0 | O174: 0 | P174: 8.441558442 | Q174: 30.64502165 | R174: 29498
A175: 1980 | B175: 10 | C175: 5 | D175: 2.4 | E175: 3.2 | F175: 0.75 | G175: 1.8 | I175: 3.941558442 | K175: 6.3 | M175: 2.08 | O175: 0 | P175: 8.441558442 | Q175: 35.42502165 | R175: 29499
A176: 1980 | B176: 10 | C176: 6 | D176: 2.6 | E176: 0 | F176: 0.75 | G176: 1.95 | I176: 8.721558442 | K176: 1.67 | M176: 0 | O176: 0 | P176: 8.441558442 | Q176: 33.19502165 | R176: 29500
A177: 1980 | B177: 10 | C177: 7 | D177: 5.1 | E177: 0 | F177: 0.75 | G177: 3.825 | I177: 6.491558442 | K177: 5.775 | M177: 0 | O177: 0 | P177: 8.441558442 | Q177: 31.32002165 | R177: 29501
A178: 1980 | B178: 10 | C178: 8 | D178: 6.6 | E178: 0 | F178: 0.75 | G178: 4.95 | I178: 4.616558442 | K178: 8.775 | M178: 0 | O178: 0 | P178: 8.441558442 | Q178: 30.19502165 | R178: 29502
A179: 1980 | B179: 10 | C179: 9 | D179: 2.7 | E179: 0 | F179: 0.75 | G179: 2.025 | I179: 3.491558442 | K179: 6.975 | M179: 0 | O179: 0 | P179: 8.441558442 | Q179: 33.12002165 | R179: 29503
A180: 1980 | B180: 10 | C180: 10 | D180: 3 | E180: 0.6 | F180: 0.75 | G180: 2.25 | I180: 6.416558442 | K180: 4.275 | M180: 0.39 | O180: 0 | P180: 8.441558442 | Q180: 33.28502165 | R180: 29504
A181: 1980 | B181: 10 | C181: 11 | D181: 3.6 | E181: 0.7 | F181: 0.75 | G181: 2.7 | I181: 6.581558442 | K181: 4.56 | M181: 0.455 | O181: 0 | P181: 8.441558442 | Q181: 32.90002165 | R181: 29505
A182: 1980 | B182: 10 | C182: 12 | D182: 4.2 | E182: 0.2 | F182: 0.75 | G182: 3.15 | I182: 6.196558442 | K182: 5.395 | M182: 0.13 | O182: 0 | P182: 8.441558442 | Q182: 32.12502165 | R182: 29506
A183: 1980 | B183: 10 | C183: 13 | D183: 3.9 | E183: 0 | F183: 0.75 | G183: 2.925 | I183: 5.421558442 | K183: 5.945 | M183: 0 | O183: 0 | P183: 8.441558442 | Q183: 32.22002165 | R183: 29507
A184: 1980 | B184: 10 | C184: 14 | D184: 5.5 | E184: 3.2 | F184: 0.75 | G184: 4.125 | I184: 5.516558442 | K184: 7.05 | M184: 2.08 | O184: 0 | P184: 8.441558442 | Q184: 33.10002165 | R184: 29508
A185: 1980 | B185: 10 | C185: 15 | D185: 2 | E185: 3.4 | F185: 0.75 | G185: 1.5 | I185: 6.396558442 | K185: 3.545 | M185: 2.21 | O185: 0 | P185: 8.441558442 | Q185: 35.85502165 | R185: 29509
A186: 1980 | B186: 10 | C186: 16 | D186: 5.6 | E186: 0 | F186: 0.75 | G186: 4.2 | I186: 9.151558442 | K186: 3.49 | M186: 0 | O186: 0 | P186: 8.441558442 | Q186: 30.94502165 | R186: 29510
A187: 1980 | B187: 10 | C187: 17 | D187: 5.7 | E187: 0 | F187: 0.75 | G187: 4.275 | I187: 4.241558442 | K187: 8.475 | M187: 0 | O187: 0 | P187: 8.441558442 | Q187: 30.87002165 | R187: 29511
A188: 1980 | B188: 10 | C188: 18 | D188: 1.8 | E188: 2.8 | F188: 0.75 | G188: 1.35 | I188: 4.166558442 | K188: 5.625 | M188: 1.82 | O188: 0 | P188: 8.441558442 | Q188: 35.61502165 | R188: 29512
A189: 1980 | B189: 10 | C189: 19 | D189: 1.5 | E189: 0 | F189: 0.75 | G189: 1.125 | I189: 8.911558442 | K189: 0.655 | M189: 0 | O189: 0 | P189: 8.441558442 | Q189: 34.02002165 | R189: 29513
A190: 1980 | B190: 10 | C190: 20 | D190: 5.2 | E190: 0 | F190: 0.75 | G190: 3.9 | I190: 7.316558442 | K190: 5.025 | M190: 0 | O190: 0 | P190: 8.441558442 | Q190: 31.24502165 | R190: 29514
A191: 1980 | B191: 10 | C191: 21 | D191: 4.9 | E191: 0 | F191: 0.75 | G191: 3.675 | I191: 4.541558442 | K191: 7.575 | M191: 0 | O191: 0 | P191: 8.441558442 | Q191: 31.47002165 | R191: 29515
A192: 1980 | B192: 10 | C192: 22 | D192: 6 | E192: 0 | F192: 0.75 | G192: 4.5 | I192: 4.766558442 | K192: 8.175 | M192: 0 | O192: 0 | P192: 8.441558442 | Q192: 30.64502165 | R192: 29516
A193: 1980 | B193: 10 | C193: 23 | D193: 5.5 | E193: 0 | F193: 0.75 | G193: 4.125 | I193: 3.941558442 | K193: 8.625 | M193: 0 | O193: 0 | P193: 8.441558442 | Q193: 31.02002165 | R193: 29517
A194: 1980 | B194: 10 | C194: 24 | D194: 6 | E194: 0 | F194: 0.75 | G194: 4.5 | I194: 4.316558442 | K194: 8.625 | M194: 0 | O194: 0 | P194: 8.441558442 | Q194: 30.64502165 | R194: 29518
A195: 1980 | B195: 10 | C195: 25 | D195: 3.9 | E195: 4.5 | F195: 0.75 | G195: 2.925 | I195: 3.941558442 | K195: 7.425 | M195: 2.925 | O195: 0 | P195: 8.441558442 | Q195: 35.14502165 | R195: 29519
A196: 1980 | B196: 10 | C196: 26 | D196: 3.9 | E196: 72 | F196: 0.75 | G196: 2.925 | I196: 8.441558442 | K196: 2.925 | M196: 46.8 | O196: 0 | P196: 8.441558442 | Q196: 79.02002165 | R196: 29520
A197: 1980 | B197: 10 | C197: 27 | D197: 1.4 | E197: 4 | F197: 0.75 | G197: 1.05 | I197: 10.15943252 | K197: -0.6678740818 | M197: 2.6 | O197: 0 | P197: 8.441558442 | Q197: 78.85214756 | R197: 29521
A198: 1980 | B198: 10 | C198: 28 | D198: 2.8 | E198: 1.2 | F198: 0.75 | G198: 2.1 | I198: 10.15943252 | K198: 0.3821259182 | M198: 0.78 | O198: 0 | P198: 8.441558442 | Q198: 75.81427348 | R198: 29522
A199: 1980 | B199: 10 | C199: 29 | D199: 8.8 | E199: 0.1 | F199: 0.75 | G199: 6.6 | I199: 10.15943252 | K199: 4.882125918 | M199: 0.065 | O199: 0 | P199: 8.441558442 | Q199: 67.5613994 | R199: 29523
A200: 1980 | B200: 10 | C200: 30 | D200: 5.7 | E200: 0 | F200: 0.75 | G200: 4.275 | I200: 10.15943252 | K200: 2.557125918 | M200: 0 | O200: 0 | P200: 8.441558442 | Q200: 61.56852532 | R200: 29524
... 4297 more rows
